Cogmind - Beta 14 --- EXPLORER MODE // 2025.04.23 @ 22:44:21 // Winter2019/RPGLIKE Player: Agod Result: Fortifying 0b10! Performance ------------- Evolutions (9) 4500 Regions Visited (56) 11200 Robots Destroyed (1433) 7165 Value Destroyed (95810) 95810 Prototype IDs (116) 2320 Alien Tech Used (0) 0 Bonus (43738) 43738 TOTAL SCORE: 164733 Bonus ------- High Alert Combat Kills 14652 Follower Combat Kills 8398 Entered Garrisons 3000 Network Hubs Disabled 800 Aligned with FarCom 300 Met Data Miner 300 Acquired ECA 300 Met Zhirov 300 Met Warlord at Base 500 MAIN.C Attacked Warlord 500 Warlord Defense Kills 4050 Met R17 at Cetus 500 Read Decrypted Archives 300 Hacked Protovariant 500 Met R17 at Research 2000 Met Warlord at Research 2000 Invited to Help at Command 2000 Destroyed MAIN.C Guards 500 Met MAIN.C 5000 Destroyed MAIN.C Shell 5000 Met Warlord at Command 2000 Win 3000 Friendly Fire -12162 Cogmind --------- Core Integrity 1801/1850 Matter 405/600 Energy 518/750 System Corruption 0% Temperature Cool (0) Movement Walking (93) Location By MAIN.C's Side Parts ------- > --- POWER (2) -------- Vortex Chain Reactor > --- PROPULSION (3) --- Enhanced Biometal Leg Potential Leg Potential Leg > --- UTILITY (12) ----- Experimental Signal Interpreter Advanced Targeting Computer Experimental Core Analyzer Advanced Kinecellerator Advanced Weapon Cycler Experimental Phase Shifter Graphene Brace Advanced Force Field Antimissile System Deep Network Scanner Quantum Router Advanced Corruption Screen > --- WEAPON (4) ------- XL Autogun Array > --- INVENTORY (7) ---- Protomatter-86 Advanced Energy Well (500) Experimental Cloaking Device Improved Potential Cannon Perforator Peak State ------------ > --- POWER ------------ Vortex Chain Reactor > --- PROPULSION ------- Enhanced Biometal Leg Potential Leg Potential Leg > --- UTILITY ---------- Experimental Signal Interpreter Advanced Targeting Computer Experimental Core Analyzer Advanced Kinecellerator Advanced Weapon Cycler Femtoactuators Experimental Phase Shifter Graphene Brace Advanced Force Field Deep Network Scanner Quantum Router Advanced Corruption Screen > --- WEAPON ----------- XL Autogun Array > --- INVENTORY -------- Protomatter Advanced Energy Well Experimental Cloaking Device Improved Potential Cannon Perforator [Rating: 193] Favorites ----------- Power Vortex Chain Reactor Engine Ion Engine Power Core Light Nuclear Core Reactor Vortex Chain Reactor Propulsion Potential Leg Treads Light Treads Leg Potential Leg Utility Graphene Brace Device Graphene Brace Storage Advanced Energy Well Processor Improved Targeting Computer Hackware Quantum Router Protection Hardened Medium Armor Plating Weapon XL Autogun Array Energy Gun EM Pulse Gun Energy Cannon Beam Cannon Ballistic Gun XL Autogun Array Ballistic Cannon Heavy Assault Cannon Launcher Grenade Launcher Special Weapon Improved Plasma Cutter Build | -11 -10 -10 -10 -9 -8 -8 -8 -8 -8 -8 -7 -7 -7 -7 -7 -7 -7 -7 -7 -7 -7 -7 -6 -6 -6 -6 -6 -6 -6 -6 -6 -6 -6 -6 -5 -5 -4 -4 -4 -4 -3 -3 -3 -3 -3 -3 -3 -3 -3 -3 -3 -3 -2 -2 -1 -1 ------- Run | Yrd Mat Min Exi Min Mat Gar Mat Gar Mat Gar Fac Gar Fac Gar Fac Gar Fac Gar Fac Low Low Dat Pro Fac Gar Fac Gar Fac Gar Fac Ext Cet Arc Hub Fac Gar Fac Upp Upp War Pro Res Gar Res Gar Res Gar Res Gar Res Arm Lab Res Tes Acc Com Slots Evolved 17 | 3 . . . . . 2 1 1 . 1 1 . 1 . . 1 . . . . . . . 1 . 1 . . . . . . . . 1 . . . . 1 . 1 . . . . . . . . 1 . . . . . Power 1 | . . . . . . . . . . . . . . . . . . . . . . . . . . 1 . . . . . . . . . . . . . . . . . . . . . . . . . . . . . . Propulsion 2 | 1 . . . . . . . . . . . . . . . . . . . . . . . . . . . . . . . . . . 1 . . . . . . . . . . . . . . . . . . . . . Utility 11 | 1 . . . . . 2 . 1 . . 1 . 1 . . 1 . . . . . . . 1 . . . . . . . . . . . . . . . 1 . 1 . . . . . . . . 1 . . . . . Weapon 3 | 1 . . . . . . 1 . . 1 . . . . . . . . . . . . . . . . . . . . . . . . . . . . . . . . . . . . . . . . . . . . . . Parts Attached 110 | 7 9 6 4 1 2 5 1 8 . 1 1 1 1 . . 2 . . 2 1 . 8 . 1 2 1 2 . 5 . . . . . 1 3 . . . 6 . 4 . . 2 . . 1 . . 1 2 . 11 . 8 Power 9 | 1 . . . . . . . 3 . . . 1 . . . . . . . . . . . . . 1 1 . 1 . . . . . . . . . . 1 . . . . . . . . . . . . . . . . Engine 1 | 1 . . . . . . . . . . . . . . . . . . . . . . . . . . . . . . . . . . . . . . . . . . . . . . . . . . . . . . . . Core 3 | . . . . . . . . 3 . . . . . . . . . . . . . . . . . . . . . . . . . . . . . . . . . . . . . . . . . . . . . . . . Reactor 5 | . . . . . . . . . . . . 1 . . . . . . . . . . . . . 1 1 . 1 . . . . . . . . . . 1 . . . . . . . . . . . . . . . . Propulsion 11 | 2 2 1 2 . . . . . . . . . . . . . . . . . . . . . . . . . 2 . . . . . 1 . . . . . . . . . . . . 1 . . . . . . . . Treads 5 | 2 2 1 . . . . . . . . . . . . . . . . . . . . . . . . . . . . . . . . . . . . . . . . . . . . . . . . . . . . . . Leg 6 | . . . 2 . . . . . . . . . . . . . . . . . . . . . . . . . 2 . . . . . 1 . . . . . . . . . . . . 1 . . . . . . . . Wheel . | . . . . . . . . . . . . . . . . . . . . . . . . . . . . . . . . . . . . . . . . . . . . . . . . . . . . . . . . . Hover . | . . . . . . . . . . . . . . . . . . . . . . . . . . . . . . . . . . . . . . . . . . . . . . . . . . . . . . . . . Flight . | . . . . . . . . . . . . . . . . . . . . . . . . . . . . . . . . . . . . . . . . . . . . . . . . . . . . . . . . . Utility 61 | 2 2 4 . 1 1 3 1 2 . . 1 . 1 . . 2 . . 2 1 . 8 . 1 2 . 1 . 2 . . . . . . . . . . 5 . 4 . . 2 . . . . . 1 . . 6 . 6 Device 39 | 1 . 2 . . . 1 1 1 . . 1 . 1 . . 1 . . 2 1 . 5 . 1 2 . 1 . 2 . . . . . . . . . . 3 . 1 . . 1 . . . . . 1 . . 4 . 6 Storage 1 | . . . . . . . . . . . . . . . . . . . . . . . . . . . . . . . . . . . . . . . . . . . . . . . . . . . . . . 1 . . Processor 8 | . . 1 . 1 . . . . . . . . . . . 1 . . . . . . . . . . . . . . . . . . . . . . . 1 . 3 . . 1 . . . . . . . . . . . Hackware 8 | . . . . . . 2 . 1 . . . . . . . . . . . . . 3 . . . . . . . . . . . . . . . . . 1 . . . . . . . . . . . . . 1 . . Protection 5 | 1 2 1 . . 1 . . . . . . . . . . . . . . . . . . . . . . . . . . . . . . . . . . . . . . . . . . . . . . . . . . . Artifact . | . . . . . . . . . . . . . . . . . . . . . . . . . . . . . . . . . . . . . . . . . . . . . . . . . . . . . . . . . Weapon 29 | 2 5 1 2 . 1 2 . 3 . 1 . . . . . . . . . . . . . . . . . . . . . . . . . 3 . . . . . . . . . . . . . . . 2 . 5 . 2 Energy Gun 4 | 2 2 . . . . . . . . . . . . . . . . . . . . . . . . . . . . . . . . . . . . . . . . . . . . . . . . . . . . . . . Energy Cannon 4 | . . 1 1 . . . . . . . . . . . . . . . . . . . . . . . . . . . . . . . . . . . . . . . . . . . . . . . . . . 2 . . Ballistic Gun 10 | . 2 . . . . . . 2 . 1 . . . . . . . . . . . . . . . . . . . . . . . . . 1 . . . . . . . . . . . . . . . 1 . 2 . 1 Ballistic Cannon 8 | . 1 . . . 1 1 . . . . . . . . . . . . . . . . . . . . . . . . . . . . . 2 . . . . . . . . . . . . . . . 1 . 1 . 1 Launcher 2 | . . . 1 . . 1 . . . . . . . . . . . . . . . . . . . . . . . . . . . . . . . . . . . . . . . . . . . . . . . . . . Special Weapon 1 | . . . . . . . . 1 . . . . . . . . . . . . . . . . . . . . . . . . . . . . . . . . . . . . . . . . . . . . . . . . Impact Weapon . | . . . . . . . . . . . . . . . . . . . . . . . . . . . . . . . . . . . . . . . . . . . . . . . . . . . . . . . . . Slashing Weapon . | . . . . . . . . . . . . . . . . . . . . . . . . . . . . . . . . . . . . . . . . . . . . . . . . . . . . . . . . . Piercing Weapon . | . . . . . . . . . . . . . . . . . . . . . . . . . . . . . . . . . . . . . . . . . . . . . . . . . . . . . . . . . Special Melee Weapon . | . . . . . . . . . . . . . . . . . . . . . . . . . . . . . . . . . . . . . . . . . . . . . . . . . . . . . . . . . Unidentified Prototypes 32 | . . 1 2 . . . . . . 1 . . . . . . . . . . . 4 . . . . . . 3 . . . . . . 1 . . . 6 . 1 . . 1 . . . . . . . . 7 . 5 Parts Lost . | . . . . . . . . . . . . . . . . . . . . . . . . . . . . . . . . . . . . . . . . . . . . . . . . . . . . . . . . . Power . | . . . . . . . . . . . . . . . . . . . . . . . . . . . . . . . . . . . . . . . . . . . . . . . . . . . . . . . . . Propulsion . | . . . . . . . . . . . . . . . . . . . . . . . . . . . . . . . . . . . . . . . . . . . . . . . . . . . . . . . . . Utility . | . . . . . . . . . . . . . . . . . . . . . . . . . . . . . . . . . . . . . . . . . . . . . . . . . . . . . . . . . Weapon . | . . . . . . . . . . . . . . . . . . . . . . . . . . . . . . . . . . . . . . . . . . . . . . . . . . . . . . . . . Highest Loss Streak . | . . . . . . . . . . . . . . . . . . . . . . . . . . . . . . . . . . . . . . . . . . . . . . . . . . . . . . . . . To Critical Strikes . | . . . . . . . . . . . . . . . . . . . . . . . . . . . . . . . . . . . . . . . . . . . . . . . . . . . . . . . . . Average Slot Usage (%) 82 | . 100 99 100 100 85 87 85 88 90 87 76 76 77 78 78 79 80 80 79 80 80 79 80 80 81 81 82 82 82 82 82 82 82 82 83 83 83 83 83 78 78 79 80 80 79 80 80 80 80 80 80 80 79 76 80 79 Engine 1 | . 14 14 14 14 14 11 10 2 . . . . . . . . . . . . . . . . . . . . . . . . . . . . . . . . . . . . . . . . . . . . . . . . Reactor 5 | . . . . . . . . . . . . 4 7 7 7 6 6 6 6 6 6 6 6 6 6 9 11 11 11 11 11 11 11 11 11 11 11 11 11 5 5 5 5 5 5 5 5 5 5 5 4 4 4 4 4 4 Treads 1 | . 28 28 21 . . . . . . . . . . . . . . . . . . . . . . . . . . . . . . . . . . . . . . . . . . . . . . . . . . . . . Leg 13 | . . . 6 28 28 24 21 19 18 17 15 15 14 14 14 13 13 13 13 13 13 13 13 12 12 11 11 11 11 11 11 11 11 11 16 16 16 16 16 15 15 15 15 15 15 15 15 15 15 15 14 14 14 14 14 14 Device 24 | . 14 1 . . . 1 10 18 18 17 23 23 26 28 28 26 26 26 25 26 26 26 26 28 31 29 29 29 29 29 29 29 29 29 27 27 27 27 27 30 26 28 25 25 24 25 25 25 25 25 27 28 26 23 28 27 Processor 13 | . . 12 14 14 14 11 10 9 9 8 7 7 7 7 7 10 13 13 13 13 13 13 13 12 12 11 11 11 11 11 11 11 11 11 11 11 11 11 11 10 15 16 20 20 20 20 20 20 20 20 19 19 19 19 19 19 Hackware 10 | . . . . . . 11 10 10 18 17 15 15 14 14 14 13 13 13 13 13 13 12 13 12 12 11 11 11 11 11 11 11 11 11 11 11 11 11 11 10 10 10 10 10 10 10 10 10 10 10 9 9 9 9 9 9 Protection 1 | . 14 13 14 14 14 11 10 1 . . . . . . . . . . . . . . . . . . . . . . . . . . . . . . . . . . . . . . . . . . . . . . . . Ballistic Gun 5 | . 3 . . . . . . 8 9 8 7 7 7 7 7 6 6 6 6 6 6 6 6 6 6 5 5 5 5 5 5 5 5 5 5 5 5 5 5 5 5 5 5 5 5 5 5 5 5 5 4 3 4 4 4 3 Ballistic Cannon 1 | . 2 14 14 14 14 11 10 9 9 7 . . . . . . . . . . . . . . . . . . . . . . . . . . . . . . . . . . . . . . . . . 1 . . . . Peak Build Rating 193 | 7 7 19 34 29 36 47 47 63 63 85 91 95 101 102 102 106 106 106 111 111 109 119 117 126 129 134 138 138 142 142 142 142 142 142 151 151 150 150 150 162 163 175 175 175 175 175 175 175 175 175 184 184 184 192 192 193 Average Rating 126 | 5 6 7 11 28 35 40 46 55 63 66 90 93 99 101 102 104 106 106 107 108 109 110 117 120 128 132 135 138 138 142 142 142 142 142 150 150 150 150 150 159 162 171 175 175 174 175 175 174 175 175 183 177 182 183 192 190 On Entrance 120 | . 7 7 7 28 29 36 47 46 63 63 85 91 95 101 102 102 106 106 106 111 109 109 117 117 126 127 134 138 138 142 142 142 142 142 142 151 150 150 150 150 162 162 175 175 175 175 175 175 175 175 175 184 184 179 192 192 Naked Turns . | . . . . . . . . . . . . . . . . . . . . . . . . . . . . . . . . . . . . . . . . . . . . . . . . . . . . . . . . . Heaviest Build 85 | 11 15 24 14 14 25 28 28 31 31 31 33 44 45 45 45 45 45 45 45 45 42 42 42 45 55 53 63 61 64 63 63 63 63 63 63 63 63 63 63 75 73 75 73 73 73 73 73 73 73 73 75 75 75 85 76 79 Greatest Support 95 | 45 45 45 65 65 65 65 65 65 65 65 65 65 65 65 65 65 65 65 65 65 65 65 65 65 65 65 65 65 65 65 65 65 65 65 95 95 95 95 95 95 95 95 95 95 95 95 95 95 95 95 95 95 95 95 95 95 Greatest Overweight (x) . | . . . . . . . . . . . . . . . . . . . . . . . . . . . . . . . . . . . . . . . . . . . . . . . . . . . . . . . . . Average Overweight (x) . | . . . . . . . . . . . . . . . . . . . . . . . . . . . . . . . . . . . . . . . . . . . . . . . . . . . . . . . . . Largest Inventory Capacity 7 | 3 3 4 4 5 7 7 7 7 7 7 7 7 7 7 7 7 7 7 7 7 7 7 7 7 7 7 7 7 7 7 7 7 7 7 7 7 7 7 7 7 7 7 7 7 7 7 7 7 7 7 7 7 7 7 7 7 Average Capacity 6 | 3 3 3 4 4 6 7 7 7 7 7 7 7 7 7 7 7 7 7 7 7 7 7 7 7 7 7 7 7 7 7 7 7 7 7 7 7 7 7 7 7 7 7 7 7 7 7 7 7 7 7 7 7 7 7 7 7 Most Carried 7 | 3 3 4 4 4 7 7 7 7 7 7 7 7 7 7 7 7 7 7 7 7 7 7 7 7 7 7 7 7 7 7 7 7 7 7 7 7 7 7 7 7 7 7 7 7 7 7 7 7 7 7 7 6 6 7 7 7 Average Carried 6 | 1 2 3 3 4 6 6 7 6 7 6 6 7 6 6 7 6 6 7 6 6 7 7 7 6 6 6 6 7 6 7 7 7 7 7 6 6 6 7 7 6 6 6 7 7 6 7 7 7 7 7 6 5 6 6 7 7 Final Capacity 7 | 3 3 4 4 5 7 7 7 7 7 7 7 7 7 7 7 7 7 7 7 7 7 7 7 7 7 7 7 7 7 7 7 7 7 7 7 7 7 7 7 7 7 7 7 7 7 7 7 7 7 7 7 7 7 7 7 7 Final Carried 7 | 3 3 4 4 4 7 7 7 7 7 7 7 7 6 7 7 6 7 7 7 7 7 7 7 7 7 6 7 7 7 7 7 7 7 7 7 6 7 7 7 7 7 7 7 7 7 7 7 7 7 7 6 6 6 7 7 7 Class Distribution -------------------- 86% | Wizard-Gunner 11% | Hacker-Mutant Dominant Class ---------------- Hacker-Mutant | -10/Materials Hacker-Mutant | -10/Mines Hacker-Mutant | -10/Exiles Hacker-Mutant | -9/Mines Hacker-Mutant | -8/Materials Hacker-Mutant | -8/Garrison Hacker-Mutant | -8/Materials Hacker-Gunner | -8/Garrison Wizard-Gunner | -8/Materials Wizard-Gunner | -8/Garrison Wizard-Gunner | -7/Factory Wizard-Gunner | -7/Garrison Wizard-Gunner | -7/Factory Wizard-Gunner | -7/Garrison Wizard-Gunner | -7/Factory Wizard-Gunner | -7/Garrison Wizard-Gunner | -7/Factory Wizard-Gunner | -7/Garrison Wizard-Gunner | -7/Factory Wizard-Gunner | -7/Lower Caves Wizard-Gunner | -7/Lower Caves Wizard-Gunner | -7/Data Miner Wizard-Gunner | -6/Proximity Caves Wizard-Gunner | -6/Factory Wizard-Gunner | -6/Garrison Wizard-Gunner | -6/Factory Wizard-Gunner | -6/Garrison Wizard-Gunner | -6/Factory Wizard-Gunner | -6/Garrison Wizard-Gunner | -6/Factory Wizard-Gunner | -6/Extension Wizard-Gunner | -6/Cetus Wizard-Gunner | -6/Archives Wizard-Gunner | -6/Hub_04(d) Wizard-Gunner | -5/Factory Wizard-Gunner | -5/Garrison Wizard-Gunner | -4/Factory Wizard-Gunner | -4/Upper Caves Wizard-Gunner | -4/Upper Caves Wizard-Gunner | -4/Warlord Wizard-Gunner | -3/Proximity Caves Wizard-Gunner | -3/Research Wizard-Gunner | -3/Garrison Wizard-Gunner | -3/Research Wizard-Gunner | -3/Garrison Wizard-Gunner | -3/Research Wizard-Gunner | -3/Garrison Wizard-Gunner | -3/Research Wizard-Gunner | -3/Garrison Wizard-Gunner | -3/Research Wizard-Gunner | -3/Armory Wizard-Gunner | -3/Lab Wizard-Gunner | -2/Research Wizard-Gunner | -2/Testing Wizard-Gunner | -1/Access Wizard-Gunner | -1/Command Resources | -11 -10 -10 -10 -9 -8 -8 -8 -8 -8 -8 -7 -7 -7 -7 -7 -7 -7 -7 -7 -7 -7 -7 -6 -6 -6 -6 -6 -6 -6 -6 -6 -6 -6 -6 -5 -5 -4 -4 -4 -4 -3 -3 -3 -3 -3 -3 -3 -3 -3 -3 -3 -3 -2 -2 -1 -1 ----------- Run | Yrd Mat Min Exi Min Mat Gar Mat Gar Mat Gar Fac Gar Fac Gar Fac Gar Fac Gar Fac Low Low Dat Pro Fac Gar Fac Gar Fac Gar Fac Ext Cet Arc Hub Fac Gar Fac Upp Upp War Pro Res Gar Res Gar Res Gar Res Gar Res Arm Lab Res Tes Acc Com Matter Collected 43751 | 270 91 105 . . 235 1103 242 855 195 986 274 1255 437 1290 446 1491 406 847 356 176 255 230 180 1135 1850 910 1325 193 1342 600 450 285 . 1620 464 1458 510 15 150 840 465 1240 1350 660 1595 1245 1260 565 1125 780 1990 . 1219 1310 945 3130 Remotely . | . . . . . . . . . . . . . . . . . . . . . . . . . . . . . . . . . . . . . . . . . . . . . . . . . . . . . . . . . Salvage Created 71512 | 77 507 156 . . 387 895 353 586 295 1201 630 1706 1287 2156 635 1882 991 1093 602 348 506 248 465 2237 2040 1861 1825 350 2260 1256 1193 556 . 2933 614 1942 994 . 669 1657 917 2256 2490 1597 2534 2302 2444 736 1977 1915 3348 . 1947 1302 1756 4598 Parts 3910 | 2 33 21 . . 28 54 30 52 17 64 26 86 49 133 48 123 66 51 36 14 26 16 22 122 121 119 104 19 88 78 47 32 . 139 49 103 61 . 21 49 48 129 102 94 138 101 143 62 123 112 201 . 96 74 103 235 Haulers Intercepted 24 | . 2 . . . 1 . . . . . 1 . 3 . . . 3 . 4 . . . . 3 . 3 . 1 . . . . . . . . . . . . . 2 . . . 1 . . . . . . . . . . Recyclers Shooed 5 | . . 1 . . . . . . 2 . . . . . . . . . . . . . . 1 . . . . . . . . . . 1 . . . . . . . . . . . . . . . . . . . . . Parts Field Recycled . | . . . . . . . . . . . . . . . . . . . . . . . . . . . . . . . . . . . . . . . . . . . . . . . . . . . . . . . . . Retrieved Matter . | . . . . . . . . . . . . . . . . . . . . . . . . . . . . . . . . . . . . . . . . . . . . . . . . . . . . . . . . . Parts Self-Destructed . | . . . . . . . . . . . . . . . . . . . . . . . . . . . . . . . . . . . . . . . . . . . . . . . . . . . . . . . . . Prevented . | . . . . . . . . . . . . . . . . . . . . . . . . . . . . . . . . . . . . . . . . . . . . . . . . . . . . . . . . . Kills | -11 -10 -10 -10 -9 -8 -8 -8 -8 -8 -8 -7 -7 -7 -7 -7 -7 -7 -7 -7 -7 -7 -7 -6 -6 -6 -6 -6 -6 -6 -6 -6 -6 -6 -6 -5 -5 -4 -4 -4 -4 -3 -3 -3 -3 -3 -3 -3 -3 -3 -3 -3 -3 -2 -2 -1 -1 ------- Run | Yrd Mat Min Exi Min Mat Gar Mat Gar Mat Gar Fac Gar Fac Gar Fac Gar Fac Gar Fac Low Low Dat Pro Fac Gar Fac Gar Fac Gar Fac Ext Cet Arc Hub Fac Gar Fac Upp Upp War Pro Res Gar Res Gar Res Gar Res Gar Res Arm Lab Res Tes Acc Com Combat Hostiles Destroyed 1171 | . 7 6 . . 5 30 12 24 5 29 9 34 12 46 14 53 7 27 4 7 9 3 5 25 43 24 33 3 33 14 10 8 . 38 11 30 19 . 5 29 19 34 36 19 45 39 42 16 32 19 53 . 29 21 35 59 Guns 1066 | . 5 1 . . . . . 7 1 9 9 34 12 46 14 53 7 27 4 7 9 3 5 23 40 21 33 3 33 13 10 8 . 38 11 30 19 . 5 29 19 34 36 19 45 39 42 16 32 19 53 . 29 21 35 58 Cannons 89 | . . 5 . . 5 26 12 17 4 20 . . . . . . . . . . . . . . . . . . . . . . . . . . . . . . . . . . . . . . . . . . . . . . AOE 16 | . 2 . . . . 4 . . . . . . . . . . . . . . . . . 2 3 3 . . . 1 . . . . . . . . . . . . . . . . . . . . . . . . . 1 Classes Destroyed 32 | 1 5 2 . . 2 3 . . 1 1 . 2 1 . . . . . . . 2 . . . . . 1 . 1 . . . . 1 . . . . . 2 . 1 . . . 1 . . . 1 . . . 2 . 2 Worker 39 | . 3 . . . 2 . . . . . . . 2 . 1 . 4 . 1 . . . . 4 . 2 . 3 . 8 . . . 1 . . 1 . . . . . . . . 3 . 1 . . . . . . . 3 Builder 34 | . . 1 . . 1 . 1 . . . . . . . . . 5 . 1 . . . . 6 . 2 . 1 . 5 1 . . 1 1 . . . . . . 2 . 1 . 2 . 1 . . . . . 2 . . Tunneler 5 | . . 2 . . . . . . . . . . . . . . . . . . . . . 1 . 1 . . . 1 . . . . . . . . . . . . . . . . . . . . . . . . . . Hauler 24 | . 2 . . . 1 . . . . . 1 . 3 . . . 3 . 4 . . . . 3 . 3 . 1 . . . . . . . . . . . . . 2 . . . 1 . . . . . . . . . . Recycler 26 | 1 1 1 . . 2 . . . . . 3 . . . . . 2 . 2 . . . . 2 . 1 . . . 1 4 . . 1 . . . . . . . . . 1 . 1 . . . 3 . . . . . . Mechanic 15 | . . . . . . . . . . . . . 1 . 1 . 1 . . . . . . 1 . 2 . 1 . . . . . 1 1 . . . . . . 1 . . . 1 . . . 1 1 . . . . 2 Operator 23 | . . . . . . . . . 1 . . . 1 . . . 1 . 2 . . . . 2 . . . . . 1 2 . . 2 1 . 1 . . . . 2 . 1 . 1 . . . 1 2 . . 2 . . Watcher 65 | . 3 . . . 2 1 1 . 1 . . . 3 2 3 . 4 . 2 . . . . 4 1 2 . . . 4 . 1 . 2 5 . 1 . . . . . . 3 . 5 . 1 . 6 4 . 1 1 1 1 Swarmer 209 | . 2 6 . . . 7 . 3 . 6 3 5 . 12 4 18 . 5 . 1 . . . 6 9 . 9 2 4 5 1 . . 4 2 2 6 . 1 . 6 8 11 4 11 4 10 . 6 2 6 . 1 3 12 2 Cutter 8 | . . . . . . . . . . . . 2 . . . 2 . . . . . . . . . . . . . . . . . . . . . . . . . . . . . . 4 . . . . . . . . . Saboteur 10 | . . . . . . . . . . . . . . . . . . . . . . . . . . . 1 . . . . . . . . . . . . 2 . . . . . 1 2 . . . 4 . . . . . Grunt 351 | . 5 . . . 2 8 4 15 3 10 5 12 5 11 2 22 2 8 . 4 . . 2 10 14 18 8 . 17 2 5 . . 13 4 11 4 . . 7 8 12 10 7 13 9 16 1 5 8 11 . 4 . 14 . Brawler 28 | . . . . . . . . . . . . 1 1 1 . 2 . . . 1 . . . 1 . . 1 . 6 . 1 . . . . 3 . . . 1 1 1 2 . 1 1 1 1 1 . . . . . . . Duelist 33 | . . . . . . 2 . . . . . 3 . 3 1 . . 1 . . . . . . 2 2 1 . 5 . . . . 2 . 1 . . . . . . 2 . 1 . 1 . . . 6 . . . . . Protector 8 | . . . . . . . . . . . . . . . . . . . . . . . . . . . . . . . . . . 3 . . . . . 3 . . . . . . . . . . 2 . . . . . Sentry 178 | . . . . . 2 7 7 1 1 7 1 10 5 13 6 4 1 8 3 1 . . 1 3 8 5 5 1 4 4 1 . . 6 3 8 3 . . . 2 2 3 2 8 3 2 3 6 3 11 . 3 . . 1 Demolisher 10 | . . . . . . . . . . . . . . . . . . . . . . . . . . . . . . . . . . . . . . . . 1 . 3 . . . 2 . 1 . . 1 . 2 . . . Specialist 18 | . . . . . . . . . . 2 . . . 1 . . . . . . . . . . . . 2 . 2 . . . . 2 . 4 . . . . . . 2 . . . . . . . 1 . 2 . . . Hunter 97 | . . . . . 1 4 1 4 1 3 . 1 . 1 . . 1 4 1 . . . 2 3 5 . 3 . . . . . . 2 . 2 3 . 3 1 . 3 4 . 3 6 3 5 4 2 2 . 7 5 6 1 Programmer 110 | . . . . . . 1 . 1 . 1 . . 1 3 1 5 3 1 . . . . 1 3 3 1 3 . 1 3 1 . . 5 2 . 3 . . 9 1 1 2 4 8 2 2 3 9 2 7 . 4 9 3 1 Heavy 1 | . . . . . . . . . . . . . . . . . . . . . . . . . . . . . . . . . . . . . . . . . . . . . . . . . . 1 . . . . . . Behemoth 26 | . . . . . . 1 . . . . . . . 1 . . . . . . . . 1 . 2 1 . . . 1 2 . . 1 . . . . . 1 1 1 . 3 . . 1 2 2 1 1 . 1 . . 2 Armor Guard 2 | . . . . . . . . . . . . . . . . . . . . . . . . . . . . . . . . . . . . . . . . . . . . . . . . . . . 2 . . . . . Cetus Guard 8 | . . . . . . . . . . . . . . . . . . . . . . . . . . . . . . . . 8 . . . . . . . . . . . . . . . . . . . . . . . . M Guard 1 | . . . . . . . . . . . . . . . . . . . . . . . . . . . . . . . . . . . . . . . . . . . . . . . . . . . . . . . . 1 Enhanced Grunt 3 | . . . . . . . . . . . . . . . . . . . . . . 3 . . . . . . . . . . . . . . . . . . . . . . . . . . . . . . . . . . Enhanced Q-Series 26 | . . . . . . . . . . . . . . . . . . . . . . . . . . . . . . . . . . . . . . . . . . . . . . . . . . . . . . . . 26 Lightning 9 | . . . . . . . . . . . . . . . . . . . . . . . . . . . . . . . . . . 8 . . . . . 1 . . . . . . . . . . . . . . . . Striker 14 | . . . . . . . . . . . . . . . . . . . . . . . . . . . . . . . . . . . . . . . . 2 . 3 . . . . . . . . . . 5 2 . 2 Executioner 5 | . . . . . . . . . . . . . . . . . . . . . . . . . . . . . 1 . . . . . . . . . . 1 . . . . . . . . . . . . . . . 3 Alpha 7 2 | . . . . . . . . . . . . . . . . . . . . . . . . . . . . . . . . . . . . . . . . . . . . . . . . . . . . . . 1 . 1 Master Thief 2 | . . . . . . . . . . . . . . . . . . . . . 2 . . . . . . . . . . . . . . . . . . . . . . . . . . . . . . . . . . . Assembled 11 | . . . . . . . . . . . . . . . . . . . . . . . . . . . . . . . . . . . . . . . . . . . . . . 11 . . . . . . . . . . Surgeon 2 | . . . . . . . . . . . . . . . . . . . . . . . . . . 1 . . . . . . . . . . . . . . . . . . . . . . . . . . . . . 1 Wasp 3 | . . . . . . . . . . . . . . . . . . . . . . . . . . . . . . . . . . . . . 3 . . . . . . . . . . . . . . . . . . . Thug 19 | . . . . . . . . . . . . . 2 . . . . . . . 2 . . . . 1 1 . . . . . . 3 . . . . . 1 . . . . . . . . . . . . . . . 9 Savage 5 | . . . . . . . . . . . . . . . . . . . . . 4 . . . . . . . . . . . . 1 . . . . . . . . . . . . . . . . . . . . . . Butcher 10 | . . . . . . . . . . . . . . . . . . . . . . . . . . . . . . . . . . . . . . . . . . . . . . . . . . 1 . . . . . 9 Guerrilla 2 | . . . . . . . . . . . . . . . 1 . . . . . . . . . . 1 . . . . . . . . . . . . . . . . . . . . . . . . . . . . . . Wizard 2 | . . . . . . . . . . . . . . . . . . . . . . . . . . 2 . . . . . . . . . . . . . . . . . . . . . . . . . . . . . . Mutant 2 | . . . . . . . . . . . . . . . . . . . . . 1 . . . . . . . . . . . . . . . . . 1 . . . . . . . . . . . . . . . . . Knight 1 | . . . . . . . . . . . . . . . . . . . . . . . . . . . . . . . . . . . . . . . . . . . . . . . . . . . . . . . . 1 Dragon 1 | . . . . . . . . . . . . . . . . . . . . . . . . . . . . . . . . . . . . . . . . . . . . . . . . . . . . . . 1 . . Revision 1 | . . . . . . . . . . . . . . . . . . . . . . . . . . . . . . . . . . . . . . . . . . 1 . . . . . . . . . . . . . . Best Kill Streak 27 | 1 5 2 . . 8 6 7 6 2 6 5 10 5 12 5 15 10 10 4 7 7 4 3 8 7 8 8 2 14 6 8 5 . 8 7 7 4 . 2 11 14 7 9 9 10 15 17 4 8 8 8 . 7 5 27 20 Combat Bots Only 26 | . 4 2 . . 3 6 7 6 2 6 3 10 3 12 3 15 2 10 1 7 7 3 3 4 7 4 8 2 14 2 5 4 . 7 6 7 3 . 2 11 14 7 9 7 10 15 17 4 8 5 8 . 7 5 26 19 Max Kills in Single Turn 8 | 1 2 1 . . 2 1 1 2 1 2 2 2 2 2 2 2 3 1 2 2 1 1 2 3 3 8 1 1 2 3 2 1 . 5 2 2 4 . 1 2 2 2 2 2 2 2 2 2 2 2 2 . 1 2 3 3 Gunslinging . | . . . . . . . . . . . . . . . . . . . . . . . . . . . . . . . . . . . . . . . . . . . . . . . . . . . . . . . . . Exploded 3 | . 2 . . . . 1 . . . . . . . . . . . . . . . . . 2 3 3 . . . 1 . . . . . . . . . . . . . . . . . . . . . . . . . 1 Melee . | . . . . . . . . . . . . . . . . . . . . . . . . . . . . . . . . . . . . . . . . . . . . . . . . . . . . . . . . . Uniques/NPCs Destroyed 1 | . . . . . . . . . . . . . . . . . . . . . . 1 . . . . . . . . . . . . . . . . . . . . . . . . . . . . . . . . . . Data Miner (-7/Data Miner) Combat | -11 -10 -10 -10 -9 -8 -8 -8 -8 -8 -8 -7 -7 -7 -7 -7 -7 -7 -7 -7 -7 -7 -7 -6 -6 -6 -6 -6 -6 -6 -6 -6 -6 -6 -6 -5 -5 -4 -4 -4 -4 -3 -3 -3 -3 -3 -3 -3 -3 -3 -3 -3 -3 -2 -2 -1 -1 -------- Run | Yrd Mat Min Exi Min Mat Gar Mat Gar Mat Gar Fac Gar Fac Gar Fac Gar Fac Gar Fac Low Low Dat Pro Fac Gar Fac Gar Fac Gar Fac Ext Cet Arc Hub Fac Gar Fac Upp Upp War Pro Res Gar Res Gar Res Gar Res Gar Res Arm Lab Res Tes Acc Com Hostile Shots Fired 1979 | . 37 16 . . 6 148 51 92 10 111 6 71 30 122 47 51 9 81 32 6 4 1 15 53 82 38 66 11 21 27 13 2 . 73 14 20 16 . 4 23 21 28 46 19 64 13 35 23 32 19 51 . 42 44 28 105 Missed 791 | . 10 7 . . 3 47 13 19 2 35 3 23 15 44 20 20 6 21 19 2 . 1 8 28 41 21 29 7 12 15 3 2 . 26 6 8 9 . 2 15 11 10 21 4 22 4 16 7 8 4 23 . 25 25 18 51 Intercepted 6 | . . . . . . . . . . . . . . . . . . . . . . . . . . . . . . . . . . . . . . . . . . . . . . . . . . . . . . . . 6 Damage Taken 8918 | . 284 66 . . 28 1070 346 446 53 510 50 205 37 285 252 166 8 201 35 49 42 5 71 230 334 218 235 11 67 67 83 . . 498 102 75 85 . 15 49 66 125 147 145 293 110 158 104 177 126 366 . 131 162 64 466 Core 6646 | . 219 45 . . 21 741 233 330 41 383 40 154 25 201 188 123 5 140 23 35 32 4 55 186 257 167 175 8 54 47 63 . . 393 76 57 66 . 10 36 51 98 110 109 218 81 121 78 129 99 273 . 97 128 47 374 Absorbed by Shields 5349 | . . . . . . . . 186 20 215 22 92 17 130 97 72 4 97 18 20 15 2 27 95 46 86 119 13 74 78 94 . . 540 111 84 91 . 18 53 69 135 153 153 312 118 168 112 186 135 385 . 143 168 70 506 Redirected to Core 5595 | . 182 45 . . 21 617 173 276 32 316 33 116 20 175 186 105 5 119 21 35 32 4 49 118 228 158 147 5 45 41 63 . . 325 76 53 50 . 10 36 37 74 88 102 196 70 96 65 129 81 239 . 87 97 42 275 Ignored by Resistances 10951 | . 174 44 . . 17 649 257 469 54 528 46 221 39 310 248 177 11 256 48 53 46 6 78 257 300 258 277 21 123 103 128 . . 651 158 134 137 . 28 87 105 219 233 234 472 189 255 157 265 215 629 . 208 239 139 999 Core Remaining (%) 99 | 100 . . . 96 . . . . . 100 . . . . . . . . . . . . 99 . . . . . . . . . . 100 . 100 . . . . 100 . . . . . . . . . . 100 . 100 . 97 Volleys Fired 2982 | 1 36 13 . . 23 126 29 72 15 85 16 83 29 85 32 85 24 56 23 7 17 10 12 75 122 60 87 15 84 40 30 19 . 108 34 92 35 . 11 51 31 80 93 41 105 83 84 37 75 52 133 8 72 80 63 203 Largest 2 | 2 2 2 . . 1 1 1 2 2 2 1 1 1 1 1 1 1 1 1 1 1 1 1 1 1 1 1 1 1 1 1 1 . 1 1 1 1 . 1 1 1 1 1 1 1 1 1 1 1 1 1 1 1 1 1 1 Hottest 95 | 80 90 95 . . 60 60 60 95 95 95 60 60 60 60 60 60 60 60 60 60 60 60 60 60 60 60 60 60 60 60 60 60 . 60 60 75 60 . 60 60 60 60 60 60 60 60 60 60 60 60 60 75 60 60 60 60 Shots Fired 3143 | 2 70 26 . . 23 126 29 113 30 136 16 83 29 85 34 87 25 56 24 7 17 10 12 75 122 60 87 15 84 40 30 19 . 108 34 92 35 . 11 51 31 80 93 41 105 83 84 37 75 52 133 8 72 80 63 203 Gun 2778 | 2 70 2 . . . . . 43 15 64 16 83 29 85 34 87 25 56 24 7 17 10 12 75 122 60 87 15 84 40 30 19 . 108 34 90 35 . 11 51 31 80 93 41 105 83 84 37 75 52 133 4 72 80 63 203 Cannon 358 | . . 24 . . 23 119 29 70 15 72 . . . . . . . . . . . . . . . . . . . . . . . . . 2 . . . . . . . . . . . . . . . 4 . . . . Launcher 7 | . . . . . . 7 . . . . . . . . . . . . . . . . . . . . . . . . . . . . . . . . . . . . . . . . . . . . . . . . . . Special . | . . . . . . . . . . . . . . . . . . . . . . . . . . . . . . . . . . . . . . . . . . . . . . . . . . . . . . . . . Kinetic 3051 | . . 13 . . 23 119 29 113 30 136 16 83 29 85 34 87 25 56 24 7 17 10 12 75 122 60 87 15 84 40 30 19 . 108 34 92 35 . 11 51 31 80 93 41 105 83 84 37 75 52 133 8 72 80 63 203 Thermal 46 | 1 34 11 . . . . . . . . . . . . . . . . . . . . . . . . . . . . . . . . . . . . . . . . . . . . . . . . . . . . . . Explosive . | . . . . . . . . . . . . . . . . . . . . . . . . . . . . . . . . . . . . . . . . . . . . . . . . . . . . . . . . . Electromagnetic 46 | 1 36 2 . . . 7 . . . . . . . . . . . . . . . . . . . . . . . . . . . . . . . . . . . . . . . . . . . . . . . . . . Robot Hit Streak 95 | 2 20 22 . . 13 32 24 25 31 51 22 32 49 39 23 40 34 34 21 14 24 36 61 60 40 51 44 36 52 37 30 48 . 45 26 53 80 . 19 29 43 48 54 42 54 40 86 56 44 58 51 . 51 57 31 95 Robot Miss Streak 4 | . 1 1 . . 1 1 1 2 1 1 4 1 1 2 2 2 1 1 1 1 2 2 2 3 2 4 2 1 3 3 1 1 . 2 2 1 1 . 1 2 1 2 2 2 2 2 2 2 2 2 2 . 2 2 2 3 Penetration Max 2 | . . . . . 1 1 . 2 1 2 . . . . . . . . . . . . . . . . . . . . . . . . . . . . . . . . . . . . . . . . . . . . . . Secondary Targets 1 | . 1 . . . . . . . . . . . . . . . . . . . . . . . . . . . . . . . . . . . . . . . . . . . . . . . . . . . . . . . Max Gunslinging Chain 1 | . 1 . . . . . . . . . . . . . . . . . . . . . . . . . . . . . . . . . . . . . . . . . . . . . . . . . . . . . . . Shots Hit Robots 2622 | 2 61 18 . . 21 92 27 76 25 100 14 54 29 51 31 61 24 39 24 7 17 10 12 65 100 54 69 10 76 37 28 19 . 101 29 72 32 . 10 51 30 74 67 36 87 70 67 30 58 48 114 . 66 76 53 198 Core Hits 2780 | 2 26 8 . . 12 37 14 28 8 41 14 59 31 73 29 65 30 46 19 8 18 11 14 69 96 67 73 11 86 42 29 24 . 117 26 77 37 . 16 52 37 86 94 52 115 86 97 45 78 68 141 . 75 80 65 246 Critical Kills 10 | . . . . . . . . 6 1 3 . . . . . . . . . . . . . . . . . . . . . . . . . . . . . . . . . . . . . . . . . . . . . . Critical Parts Destroyed 26 | . . . . . . . . 9 4 13 . . . . . . . . . . . . . . . . . . . . . . . . . . . . . . . . . . . . . . . . . . . . . . Critical Strikes 78 | . 4 . . . 5 10 5 21 8 25 . . . . . . . . . . . . . . . . . . . . . . . . . . . . . . . . . . . . . . . . . . . . . . Burn 1 | . 1 . . . . . . . . . . . . . . . . . . . . . . . . . . . . . . . . . . . . . . . . . . . . . . . . . . . . . . . Destroy 36 | . . . . . . . . 15 5 16 . . . . . . . . . . . . . . . . . . . . . . . . . . . . . . . . . . . . . . . . . . . . . . Blast 38 | . . . . . 5 10 5 6 3 9 . . . . . . . . . . . . . . . . . . . . . . . . . . . . . . . . . . . . . . . . . . . . . . Corrupt 3 | . 3 . . . . . . . . . . . . . . . . . . . . . . . . . . . . . . . . . . . . . . . . . . . . . . . . . . . . . . . Melee Attacks . | . . . . . . . . . . . . . . . . . . . . . . . . . . . . . . . . . . . . . . . . . . . . . . . . . . . . . . . . . Impact . | . . . . . . . . . . . . . . . . . . . . . . . . . . . . . . . . . . . . . . . . . . . . . . . . . . . . . . . . . Slashing . | . . . . . . . . . . . . . . . . . . . . . . . . . . . . . . . . . . . . . . . . . . . . . . . . . . . . . . . . . Piercing . | . . . . . . . . . . . . . . . . . . . . . . . . . . . . . . . . . . . . . . . . . . . . . . . . . . . . . . . . . Sneak Attacks . | . . . . . . . . . . . . . . . . . . . . . . . . . . . . . . . . . . . . . . . . . . . . . . . . . . . . . . . . . Combat Hostiles . | . . . . . . . . . . . . . . . . . . . . . . . . . . . . . . . . . . . . . . . . . . . . . . . . . . . . . . . . . Follow-up Attacks . | . . . . . . . . . . . . . . . . . . . . . . . . . . . . . . . . . . . . . . . . . . . . . . . . . . . . . . . . . Damage Inflicted 241859 | 23 980 337 . . 1279 5141 1500 2495 782 4079 1114 5088 2523 5240 2987 4902 1976 3298 1859 693 1500 1155 1360 6079 9380 6908 6602 950 7175 3741 3061 2235 . 11532 2958 7884 3389 . 936 6489 3249 7272 6705 3978 9048 6654 6783 3330 6480 4752 11010 . 7005 7776 4991 23196 Guns 221920 | 23 812 20 . . . . . 355 87 1280 1088 5088 2506 5240 2696 4855 1968 3298 1836 693 1500 1155 1137 5634 8921 5474 6602 728 7175 3381 2961 2235 . 9924 2958 7884 2988 . 936 6489 3249 7272 6705 3978 9048 6654 6783 3330 6480 4752 11010 . 7005 7776 4761 23190 Cannons 13438 | . . 300 . . 1269 4736 1500 2140 694 2799 . . . . . . . . . . . . . . . . . . . . . . . . . . . . . . . . . . . . . . . . . . . . . . Explosions 6399 | . 151 . . . . 405 . . . . . . . . 291 47 . . 23 . . . 223 445 459 1434 . 222 . 360 100 . . 1608 . . 401 . . . . . . . . . . . . . . . . . 230 . Melee . | . . . . . . . . . . . . . . . . . . . . . . . . . . . . . . . . . . . . . . . . . . . . . . . . . . . . . . . . . Ramming 102 | . 17 17 . . 10 . . . 1 . 26 . 17 . . . 8 . . . . . . . . . . . . . . . . . . . . . . . . . . . . . . . . . . . . . . 6 Kinetic 234312 | . . 109 . . 1269 4736 1500 2495 781 4079 1088 5088 2506 5240 2696 4855 1968 3298 1836 693 1500 1155 1137 5634 8921 5474 6602 728 7175 3381 2961 2235 . 9924 2958 7884 2988 . 936 6489 3249 7272 6705 3978 9048 6654 6783 3330 6480 4752 11010 . 7005 7776 4761 23190 Thermal 4042 | 11 507 191 . . . . . . . . . . . . 291 . . . 23 . . . 223 445 . 1434 . 37 . 360 100 . . 19 . . 401 . . . . . . . . . . . . . . . . . . . Explosive 921 | . . . . . . . . . . . . . . . . 47 . . . . . . . . 459 . . 185 . . . . . . . . . . . . . . . . . . . . . . . . . . 230 . Electromagnetic 2482 | 12 456 20 . . . 405 . . . . . . . . . . . . . . . . . . . . . . . . . . . 1589 . . . . . . . . . . . . . . . . . . . . . . Impact . | . . . . . . . . . . . . . . . . . . . . . . . . . . . . . . . . . . . . . . . . . . . . . . . . . . . . . . . . . Slashing . | . . . . . . . . . . . . . . . . . . . . . . . . . . . . . . . . . . . . . . . . . . . . . . . . . . . . . . . . . Piercing . | . . . . . . . . . . . . . . . . . . . . . . . . . . . . . . . . . . . . . . . . . . . . . . . . . . . . . . . . . Highest Corruption 4 | . 1 1 1 1 . . . . . . . . 1 1 3 4 4 4 4 . . . . . . . . . . . . . . . . . . . . . . . . . . . . . . . . . . . . . Average Corruption 2 | . 1 1 1 1 . . . . . . . . 1 1 1 3 4 4 2 . . . . . . . . . . . . . . . . . . . . . . . . . . . . . . . . . . . . . Corruption Purged 4 | . . . . . . . . . . . . . . . . . . . 4 . . . . . . . . . . . . . . . . . . . . . . . . . . . . . . . . . . . . . Corruption Blocked 18 | . . . . . . . . . . . . . . . . . . . . . . . . 1 . . . . . 2 . . . 6 . . . . . . . . . . 1 . . 2 . . 1 . . 1 . 4 Effects 87 | . 2 6 4 1 . . . . . . . . 3 4 9 29 10 10 9 . . . . . . . . . . . . . . . . . . . . . . . . . . . . . . . . . . . . . Message Errors 26 | . 1 2 1 . . . . . . . . . . . 2 11 . 5 4 . . . . . . . . . . . . . . . . . . . . . . . . . . . . . . . . . . . . . Matter Fused 19 | . 1 . . . . . . . . . . . 1 . 3 4 5 3 2 . . . . . . . . . . . . . . . . . . . . . . . . . . . . . . . . . . . . . Heat Flow Errors 8 | . . 1 1 . . . . . . . . . 1 2 1 1 . 1 . . . . . . . . . . . . . . . . . . . . . . . . . . . . . . . . . . . . . . Energy Discharges 10 | . . 1 1 1 . . . . . . . . 1 . . 5 1 . . . . . . . . . . . . . . . . . . . . . . . . . . . . . . . . . . . . . . . Parts Rejected 1 | . . . . . . . . . . . . . . . . 1 . . . . . . . . . . . . . . . . . . . . . . . . . . . . . . . . . . . . . . . . Data Loss (minor) 10 | . . 2 1 . . . . . . . . . . 1 . 2 2 . 2 . . . . . . . . . . . . . . . . . . . . . . . . . . . . . . . . . . . . . Data Loss (major) 6 | . . . . . . . . . . . . . . 1 . 3 1 1 . . . . . . . . . . . . . . . . . . . . . . . . . . . . . . . . . . . . . . Misfires 6 | . . . . . . . . . . . . . . . 2 2 1 . 1 . . . . . . . . . . . . . . . . . . . . . . . . . . . . . . . . . . . . . Alerts 1 | . . . . . . . . . . . . . . . 1 . . . . . . . . . . . . . . . . . . . . . . . . . . . . . . . . . . . . . . . . . Overload Shots . | . . . . . . . . . . . . . . . . . . . . . . . . . . . . . . . . . . . . . . . . . . . . . . . . . . . . . . . . . Overflow Damage 1887 | . 21 . . . 91 424 69 62 80 302 . . . . 86 . . . . . . . . 155 99 295 . 7 . 67 23 . . 98 . . 8 . . . . . . . . . . . . . . . . . . . Projectiles 993 | . . . . . 91 389 69 62 80 302 . . . . . . . . . . . . . . . . . . . . . . . . . . . . . . . . . . . . . . . . . . . . . . Explosions 894 | . 21 . . . . 35 . . . . . . . . 86 . . . . . . . . 155 99 295 . 7 . 67 23 . . 98 . . 8 . . . . . . . . . . . . . . . . . . . Melee . | . . . . . . . . . . . . . . . . . . . . . . . . . . . . . . . . . . . . . . . . . . . . . . . . . . . . . . . . . Knockbacks 58 | . . 2 . . 4 24 1 10 4 13 . . . . . . . . . . . . . . . . . . . . . . . . . . . . . . . . . . . . . . . . . . . . . . Impact . | . . . . . . . . . . . . . . . . . . . . . . . . . . . . . . . . . . . . . . . . . . . . . . . . . . . . . . . . . Kinetic 53 | . . 2 . . 4 21 1 10 3 12 . . . . . . . . . . . . . . . . . . . . . . . . . . . . . . . . . . . . . . . . . . . . . . Secondary 5 | . . . . . . 3 . . 1 1 . . . . . . . . . . . . . . . . . . . . . . . . . . . . . . . . . . . . . . . . . . . . . . Self-Inflicted Damage 862 | . 46 24 . . . . . . . . . . . . 220 . . . . . . . 36 80 . 90 . . 38 . . . . 253 . . 75 . . . . . . . . . . . . . . . . . . . Shots 20 | . 3 1 . . . . . . . . . . . . 4 . . . . . . . 1 2 . 2 . . 1 . . . . 4 . . 2 . . . . . . . . . . . . . . . . . . . Rammed 8 | . 5 3 . . . . . . . . . . . . . . . . . . . . . . . . . . . . . . . . . . . . . . . . . . . . . . . . . . . . . . Targets Rammed 21 | . 5 5 . . 1 . . . 1 . 4 . 2 . . . 2 . . . . . . . . . . . . . . . . . . . . . . . . . . . . . . . . . . . . . . 1 Kicked 11 | . . . . . 1 . . . 1 . 4 . 2 . . . 2 . . . . . . . . . . . . . . . . . . . . . . . . . . . . . . . . . . . . . . 1 Crushed 2 | . . 2 . . . . . . . . . . . . . . . . . . . . . . . . . . . . . . . . . . . . . . . . . . . . . . . . . . . . . . Highest Temperature 429 | 18 429 180 172 . . 3 26 9 . 28 64 120 134 203 122 218 38 257 58 124 172 150 64 124 245 112 224 21 84 60 65 120 . 302 54 96 54 . . 41 37 29 39 25 31 25 29 25 29 29 31 . 29 25 25 29 Average Temperature 46 | 12 120 101 92 . . 3 6 6 . 18 26 35 32 37 34 39 21 47 23 68 74 74 28 31 59 35 41 8 20 13 23 76 . 78 50 47 40 . . 26 25 25 24 25 25 25 25 25 25 25 24 . 25 25 25 25 Received Heat Transfer 2628 | . 249 . . . 9 294 324 258 18 262 6 76 16 99 28 70 4 83 19 18 24 6 8 37 116 31 68 6 24 11 21 . . 57 16 24 8 . . 4 8 16 28 18 52 5 8 8 22 37 72 . 8 4 8 40 Effects 6 | . 6 . . . . . . . . . . . . . . . . . . . . . . . . . . . . . . . . . . . . . . . . . . . . . . . . . . . . . . . Shutdowns 1 | . 1 . . . . . . . . . . . . . . . . . . . . . . . . . . . . . . . . . . . . . . . . . . . . . . . . . . . . . . . Energy Bleed 1 | . 1 . . . . . . . . . . . . . . . . . . . . . . . . . . . . . . . . . . . . . . . . . . . . . . . . . . . . . . . Short Circuit 1 | . 1 . . . . . . . . . . . . . . . . . . . . . . . . . . . . . . . . . . . . . . . . . . . . . . . . . . . . . . . Damage (major) 3 | . 3 . . . . . . . . . . . . . . . . . . . . . . . . . . . . . . . . . . . . . . . . . . . . . . . . . . . . . . . Siege Activations . | . . . . . . . . . . . . . . . . . . . . . . . . . . . . . . . . . . . . . . . . . . . . . . . . . . . . . . . . . Robots Corrupted . | . . . . . . . . . . . . . . . . . . . . . . . . . . . . . . . . . . . . . . . . . . . . . . . . . . . . . . . . . Combat Hostiles . | . . . . . . . . . . . . . . . . . . . . . . . . . . . . . . . . . . . . . . . . . . . . . . . . . . . . . . . . . Parts Fried 23 | . . . . . . 4 . . . . . . . . . . . . . . . . . . . . . . . . 1 . . 4 . . 1 . . . . . . . . 2 . . 1 . 4 . 1 . . 5 Impact Corruptions 3 | . . . . . . 3 . . . . . . . . . . . . . . . . . . . . . . . . . . . . . . . . . . . . . . . . . . . . . . . . . . Robots Melted . | . . . . . . . . . . . . . . . . . . . . . . . . . . . . . . . . . . . . . . . . . . . . . . . . . . . . . . . . . Combat Hostiles . | . . . . . . . . . . . . . . . . . . . . . . . . . . . . . . . . . . . . . . . . . . . . . . . . . . . . . . . . . Parts Melted 18 | . 2 . . . . . . . . . . . . . . . 1 2 . . . . . . 1 2 . . . . 1 . . . . 2 . . . 4 . . . . . . . . . . . . 1 . . 2 Heat Transferred 4289 | 25 1287 407 . . . . . . . . . . . . 150 . . . 50 . . . 320 400 . 900 . 50 . 200 100 . . 50 . . 350 . . . . . . . . . . . . . . . . . . . Parts Sabotaged . | . . . . . . . . . . . . . . . . . . . . . . . . . . . . . . . . . . . . . . . . . . . . . . . . . . . . . . . . . Parts Stolen . | . . . . . . . . . . . . . . . . . . . . . . . . . . . . . . . . . . . . . . . . . . . . . . . . . . . . . . . . . Parts Stripped . | . . . . . . . . . . . . . . . . . . . . . . . . . . . . . . . . . . . . . . . . . . . . . . . . . . . . . . . . . Power Chain Reactions 5 | . 3 1 . . . . . . . . . . . . . . . . . . . . . . . . . . . . . . . 1 . . . . . . . . . . . . . . . . . . . . . . Alert | -11 -10 -10 -10 -9 -8 -8 -8 -8 -8 -8 -7 -7 -7 -7 -7 -7 -7 -7 -7 -7 -7 -7 -6 -6 -6 -6 -6 -6 -6 -6 -6 -6 -6 -6 -5 -5 -4 -4 -4 -4 -3 -3 -3 -3 -3 -3 -3 -3 -3 -3 -3 -3 -2 -2 -1 -1 ------- Run | Yrd Mat Min Exi Min Mat Gar Mat Gar Mat Gar Fac Gar Fac Gar Fac Gar Fac Gar Fac Low Low Dat Pro Fac Gar Fac Gar Fac Gar Fac Ext Cet Arc Hub Fac Gar Fac Upp Upp War Pro Res Gar Res Gar Res Gar Res Gar Res Arm Lab Res Tes Acc Com Peak Influence 2126 | 5 127 114 . . 212 838 688 965 374 754 365 955 342 1438 835 1853 664 636 360 . . . . 335 1607 677 1265 574 498 395 452 260 104 1186 435 1263 1071 . . . . 410 1414 759 2126 1369 2013 856 1795 950 882 . 721 260 940 226 Initial 897 | . 2 . . . . . 299 . 326 . 226 81 332 12 560 . 605 43 216 . . . . 76 114 626 203 493 . 193 3 4 72 10 426 18 492 . . . . 161 179 222 392 897 429 850 293 757 183 . . 260 86 38 Average 461 | 2 43 23 . . 69 446 458 550 176 426 194 617 105 813 529 997 256 447 192 . . . . 141 881 148 915 160 290 149 159 176 66 551 88 879 591 . . . . 147 873 331 1592 901 1401 414 1177 726 465 . 416 82 213 116 Maximum Alert Level 5 | . . . . . 1 3 2 3 1 3 1 3 1 4 3 5 2 2 1 . . . . 1 5 2 4 2 2 1 2 1 . 4 2 4 3 . . . . 2 4 3 5 4 5 3 5 3 3 . 3 1 3 1 Low Security (%) 38 | 100 100 100 . 100 85 19 3 19 61 16 46 11 85 4 1 12 60 11 37 . . . . 71 6 73 . 52 21 74 53 58 100 13 90 5 9 . . . . 76 3 40 . . . . 1 . 11 . 19 86 74 81 Level 1 18 | . . . . . 14 19 38 11 38 19 53 5 14 10 21 15 14 17 62 . . . . 28 15 18 11 38 58 25 40 41 . 12 3 12 8 . . . . 21 7 9 2 . 6 52 9 . 23 . 13 13 4 18 Level 2 19 | . . . . . . 49 57 22 . 57 . 41 . 16 63 2 24 71 . . . . . . 20 8 12 8 19 . 6 . . 39 5 13 46 . . . . 1 25 45 6 15 3 39 12 39 58 . 63 . 8 . Level 3 12 | . . . . . . 10 . 45 . 7 . 41 . 50 13 25 . . . . . . . . 16 . 35 . . . . . . 30 . 26 35 . . . . . 22 4 4 63 4 8 23 60 6 . 3 . 12 . Level 4 7 | . . . . . . . . . . . . . . 18 . 20 . . . . . . . . 36 . 39 . . . . . . 4 . 40 . . . . . . 40 . 20 20 52 . 18 . . . . . . . Level 5 3 | . . . . . . . . . . . . . . . . 22 . . . . . . . . 4 . . . . . . . . . . . . . . . . . . . 65 . 33 . 35 . . . . . . . High Security . | . . . . . . . . . . . . . . . . . . . . . . . . . . . . . . . . . . . . . . . . . . . . . . . . . . . . . . . . . Max Security . | . . . . . . . . . . . . . . . . . . . . . . . . . . . . . . . . . . . . . . . . . . . . . . . . . . . . . . . . . Squads Dispatched 108 | . . . . . . . . . . . 1 . 2 . 2 . 1 . 2 . . . . 4 . 4 . 1 . 2 3 . . 5 . . 2 . . . . 4 . 9 . 19 . 11 . 6 5 . 3 11 9 2 Investigation 13 | . . . . . . . . . . . 1 . . . 1 . . . . . . . . . . . . . . . 2 . . 1 . . . . . . . . . 1 . 1 . 2 . 1 1 . . . 2 . Extermination 17 | . . . . . . . . . . . . . 1 . . . 1 . . . . . . 1 . 1 . . . 1 . . . 1 . . . . . . . . . 1 . 1 . 1 . . 3 . . 3 1 1 Reinforcement 46 | . . . . . . . . . . . . . 1 . . . . . 2 . . . . 2 . 2 . 1 . 1 1 . . 2 . . 2 . . . . 4 . 3 . 5 . 6 . 3 1 . 3 3 3 1 Assault 8 | . . . . . . . . . . . . . . . . . . . . . . . . . . . . . . . . . . 1 . . . . . . . . . . . 5 . . . 1 . . . 1 . . Garrison 24 | . . . . . . . . . . . . . . . 1 . . . . . . . . 1 . 1 . . . . . . . . . . . . . . . . . 4 . 7 . 2 . 1 . . . 4 3 . Intercept . | . . . . . . . . . . . . . . . . . . . . . . . . . . . . . . . . . . . . . . . . . . . . . . . . . . . . . . . . . Searches Triggered . | . . . . . . . . . . . . . . . . . . . . . . . . . . . . . . . . . . . . . . . . . . . . . . . . . . . . . . . . . Construction Impeded 4 | . . . . . . . . . . . . . . . . . . . 1 . . . . . . 1 . 1 . . . . . . . . . . . . . . . . . 1 . . . . . . . . . . Haulers Reinforced 16 | . . . . . . . . . . . . . 1 . . . . . 1 . . . . 1 . 1 . . . 1 . . . . . . 1 . . . . 1 . 1 . . . 1 . 2 . . 1 1 3 . Active Scanning Responses . | . . . . . . . . . . . . . . . . . . . . . . . . . . . . . . . . . . . . . . . . . . . . . . . . . . . . . . . . . Cargo Convoy Interrupts 2 | . . . . . . . . . . . . . . . . . . . . . . . . 1 . . . . . . . . . . . . . . . . . . . . . . . 1 . . . . . . . . Stealth | -11 -10 -10 -10 -9 -8 -8 -8 -8 -8 -8 -7 -7 -7 -7 -7 -7 -7 -7 -7 -7 -7 -7 -6 -6 -6 -6 -6 -6 -6 -6 -6 -6 -6 -6 -5 -5 -4 -4 -4 -4 -3 -3 -3 -3 -3 -3 -3 -3 -3 -3 -3 -3 -2 -2 -1 -1 --------- Run | Yrd Mat Min Exi Min Mat Gar Mat Gar Mat Gar Fac Gar Fac Gar Fac Gar Fac Gar Fac Low Low Dat Pro Fac Gar Fac Gar Fac Gar Fac Ext Cet Arc Hub Fac Gar Fac Upp Upp War Pro Res Gar Res Gar Res Gar Res Gar Res Arm Lab Res Tes Acc Com Distress Signals 69 | . . . . . . . . . . . . . 1 . 1 . 1 . . . . . . 1 . . . . . 3 2 2 . 3 1 . 2 . . 2 . 4 . 6 . 7 . 11 . 1 3 . 8 2 . 8 Communications Jammed . | . . . . . . . . . . . . . . . . . . . . . . . . . . . . . . . . . . . . . . . . . . . . . . . . . . . . . . . . . Distress Signals . | . . . . . . . . . . . . . . . . . . . . . . . . . . . . . . . . . . . . . . . . . . . . . . . . . . . . . . . . . Times Spotted 1319 | . 15 6 . . 8 30 11 26 8 39 8 29 13 36 17 43 10 24 10 7 10 4 4 38 40 26 32 3 45 22 14 10 . 49 18 35 23 . 6 62 18 33 33 23 47 33 42 18 31 27 60 . 39 21 33 80 Peak Tracking Total 18 | . 4 2 . . 2 5 5 5 2 4 3 4 3 7 4 8 2 3 3 6 6 3 2 6 6 3 4 2 13 2 7 5 . 7 3 8 5 . 2 18 11 4 5 5 7 7 5 3 4 5 6 . 6 3 9 17 Tactical Retreats 27 | . 3 . . . . 1 . 2 . 1 . . 1 1 . 2 . . . . . . . 1 5 . 1 . . . . . . . 1 . . . . . 1 . . 1 1 . 1 . . . 1 . . . 1 2 Traps | -11 -10 -10 -10 -9 -8 -8 -8 -8 -8 -8 -7 -7 -7 -7 -7 -7 -7 -7 -7 -7 -7 -7 -6 -6 -6 -6 -6 -6 -6 -6 -6 -6 -6 -6 -5 -5 -4 -4 -4 -4 -3 -3 -3 -3 -3 -3 -3 -3 -3 -3 -3 -3 -2 -2 -1 -1 ------- Run | Yrd Mat Min Exi Min Mat Gar Mat Gar Mat Gar Fac Gar Fac Gar Fac Gar Fac Gar Fac Low Low Dat Pro Fac Gar Fac Gar Fac Gar Fac Ext Cet Arc Hub Fac Gar Fac Upp Upp War Pro Res Gar Res Gar Res Gar Res Gar Res Arm Lab Res Tes Acc Com Traps Triggered 61 | . 1 . . . . . . 1 . 2 2 . 2 3 2 . 1 3 . . . . . 1 2 2 2 1 . 3 1 . . 2 3 2 1 . . . . 1 4 2 3 1 4 3 1 1 1 . . 1 1 1 Indirectly . | . . . . . . . . . . . . . . . . . . . . . . . . . . . . . . . . . . . . . . . . . . . . . . . . . . . . . . . . . Trap Hack Attempts . | . . . . . . . . . . . . . . . . . . . . . . . . . . . . . . . . . . . . . . . . . . . . . . . . . . . . . . . . . Triggered . | . . . . . . . . . . . . . . . . . . . . . . . . . . . . . . . . . . . . . . . . . . . . . . . . . . . . . . . . . Disarmed 43 | . . . . . 4 . . . . . . . 6 . . . 6 . . . . . . . . . . . . . . . . 3 . . 6 . . . . 1 . . . . . . . . 5 . . . . 12 Reprogrammed 114 | . 6 . . . 4 . . . 4 . 9 . . . . . 7 . . . . . . 4 . 4 . . . 4 2 . . . 22 . . . . . . 15 . 13 . 6 . . . 10 1 . . 3 . . Reused 9 | . . . . . . . . . . . 1 . . . . . 2 . . . . . . . . . . . . . . . . . 2 . . . . . . 1 . 1 . . . . . 2 . . . . . . Traps Extracted . | . . . . . . . . . . . . . . . . . . . . . . . . . . . . . . . . . . . . . . . . . . . . . . . . . . . . . . . . . Installed . | . . . . . . . . . . . . . . . . . . . . . . . . . . . . . . . . . . . . . . . . . . . . . . . . . . . . . . . . . Triggered 22 | . . . . . . . . . . . 1 . . . . . 2 . . . . . 1 . . . . . . . . . . . 2 . . . 1 9 . 1 . 1 . . . . . 2 . . . . . 2 Machines | -11 -10 -10 -10 -9 -8 -8 -8 -8 -8 -8 -7 -7 -7 -7 -7 -7 -7 -7 -7 -7 -7 -7 -6 -6 -6 -6 -6 -6 -6 -6 -6 -6 -6 -6 -5 -5 -4 -4 -4 -4 -3 -3 -3 -3 -3 -3 -3 -3 -3 -3 -3 -3 -2 -2 -1 -1 ---------- Run | Yrd Mat Min Exi Min Mat Gar Mat Gar Mat Gar Fac Gar Fac Gar Fac Gar Fac Gar Fac Low Low Dat Pro Fac Gar Fac Gar Fac Gar Fac Ext Cet Arc Hub Fac Gar Fac Upp Upp War Pro Res Gar Res Gar Res Gar Res Gar Res Arm Lab Res Tes Acc Com Machines Disabled 352 | . . 1 . . 1 14 . 8 . 8 4 14 1 15 6 16 1 12 6 1 . 1 1 21 18 10 10 9 11 9 5 . 1 31 4 11 6 . 1 . 2 3 12 1 15 6 15 2 11 . 12 . 2 5 5 4 Max in Single Turn 12 | . . 1 . . 1 2 . 1 . 1 1 1 1 2 4 2 1 1 3 1 . 1 1 7 2 5 1 4 2 2 2 . . 12 1 1 4 . 1 . 1 1 1 1 2 1 2 1 2 . 1 . 1 1 1 1 Garrison Access 19 | . . . . . . . . . . . 1 . 1 . . . 1 . 1 . . . . . . 2 . 1 . 1 . . . . 1 . 1 . . . . 2 . 1 . 1 . 1 . 1 . . 1 1 1 . Garrison Relay 75 | . . . . . . 5 . 6 . 5 . 5 . 8 . 6 . 4 . . . . . . 5 . 4 . 4 . . . . . . 5 . . . . . . 5 . 4 . 5 . 4 . . . . . . . Phase Generator 9 | . . . . . . 1 . . . . . 1 . 1 . 1 . . . . . . . . 1 . . . 1 . . . . . . . . . . . . . . . 1 . 1 . 1 . . . . . . . Network Hub 4 | . . . . . . . . . . . . . . . . . . . . . . . . . . . . . . . . . . 4 . . . . . . . . . . . . . . . . . . . . . . Energy Cycler 2 | . . . . . . . . . . . . . . . . . . . . . . . . . . . . . . . 1 . . . . . . . . . . . . . . . . . . . 1 . . . . . Machines Repaired . | . . . . . . . . . . . . . . . . . . . . . . . . . . . . . . . . . . . . . . . . . . . . . . . . . . . . . . . . . Machines Dismantled 1 | . . . . . . . . 1 . . . . . . . . . . . . . . . . . . . . . . . . . . . . . . . . . . . . . . . . . . . . . . . . Machines Sabotaged . | . . . . . . . . . . . . . . . . . . . . . . . . . . . . . . . . . . . . . . . . . . . . . . . . . . . . . . . . . Overloaded Fab Kills . | . . . . . . . . . . . . . . . . . . . . . . . . . . . . . . . . . . . . . . . . . . . . . . . . . . . . . . . . . Hacking | -11 -10 -10 -10 -9 -8 -8 -8 -8 -8 -8 -7 -7 -7 -7 -7 -7 -7 -7 -7 -7 -7 -7 -6 -6 -6 -6 -6 -6 -6 -6 -6 -6 -6 -6 -5 -5 -4 -4 -4 -4 -3 -3 -3 -3 -3 -3 -3 -3 -3 -3 -3 -3 -2 -2 -1 -1 --------- Run | Yrd Mat Min Exi Min Mat Gar Mat Gar Mat Gar Fac Gar Fac Gar Fac Gar Fac Gar Fac Low Low Dat Pro Fac Gar Fac Gar Fac Gar Fac Ext Cet Arc Hub Fac Gar Fac Upp Upp War Pro Res Gar Res Gar Res Gar Res Gar Res Arm Lab Res Tes Acc Com Machines Accessed 244 | . 8 1 4 . 5 3 4 3 4 4 10 3 11 3 4 3 10 3 4 1 . 4 1 7 . 9 2 7 2 11 3 3 1 5 12 2 7 1 . . 1 9 3 10 2 6 1 6 3 6 12 . 1 9 5 5 Terminals 161 | . 6 . . . 4 3 3 3 3 4 6 3 5 3 2 3 7 3 2 . . . 1 5 . 5 2 2 2 7 3 3 . 5 6 2 4 1 . . 1 5 3 7 2 2 1 2 3 5 7 . . 6 4 5 Fabricators 36 | . . . . . . . . . . . 1 . 4 . 1 . 1 . 1 . . . . 1 . 1 . 3 . 3 . . . . 3 . 2 . . . . 2 . 1 . 2 . 2 . . 5 . 1 2 . . Repair Stations . | . . . . . . . . . . . . . . . . . . . . . . . . . . . . . . . . . . . . . . . . . . . . . . . . . . . . . . . . . Recycling Units 4 | . 2 . . . . . . . . . 1 . . . . . . . . . . . . . . . . . . . . . . . 1 . . . . . . . . . . . . . . . . . . . . . Scanalyzers . | . . . . . . . . . . . . . . . . . . . . . . . . . . . . . . . . . . . . . . . . . . . . . . . . . . . . . . . . . Garrison Access 32 | . . . . . 1 . 1 . 1 . 2 . 2 . 1 . 2 . 1 . . . . 1 . 3 . 2 . 1 . . . . 2 . 1 . . . . 2 . 2 . 2 . 2 . 1 . . . 1 1 . Total Hacks 1333 | . 36 1 49 . 26 12 21 17 19 20 28 13 48 12 21 14 47 15 20 1 . 30 2 31 . 56 6 37 15 59 9 11 25 29 58 6 37 1 . . 8 64 46 45 4 26 6 27 11 64 62 . 2 71 27 38 Successful 1006 | . 28 1 49 . 23 7 13 8 17 11 23 8 34 8 15 12 37 10 12 1 . 30 2 26 . 46 4 28 11 45 7 9 25 20 52 6 27 1 . . 8 54 17 42 4 21 3 17 6 29 49 . 2 52 16 30 Failed 327 | . 8 . . . 3 5 8 9 2 9 5 5 14 4 6 2 10 5 8 . . . . 5 . 10 2 9 4 14 2 2 . 9 6 . 10 . . . . 10 29 3 . 5 3 10 5 35 13 . . 19 11 8 Catastrophic 69 | . . . . . . 1 1 . . 1 1 . 2 . 3 2 1 1 1 . . . . . . . . 3 1 4 . . . . . . 1 . . . . 2 11 . . 2 . 4 1 14 5 . . 5 2 . Database Lockouts . | . . . . . . . . . . . . . . . . . . . . . . . . . . . . . . . . . . . . . . . . . . . . . . . . . . . . . . . . . Manual 619 | . 11 . 1 . 11 7 17 11 12 17 17 11 18 9 7 11 20 12 8 . . . . 16 . 33 4 17 14 29 3 . . 18 24 4 22 . . 1 . 30 42 17 2 14 5 17 8 37 28 3 . 21 3 7 Terminals 1053 | . 32 . . . 24 12 20 17 18 20 23 13 33 12 14 14 42 15 14 . . . 2 28 . 47 6 23 15 46 9 11 . 29 38 6 31 1 . . 8 54 46 41 4 19 6 19 11 62 45 . . 61 24 38 Fabricators 121 | . . . . . . . . . . . 1 . 13 . 6 . 3 . 4 . . . . 2 . 4 . 10 . 12 . . . . 16 . 5 . . . . 6 . 2 . 4 . 5 . . 17 . 2 9 . . Repair Stations . | . . . . . . . . . . . . . . . . . . . . . . . . . . . . . . . . . . . . . . . . . . . . . . . . . . . . . . . . . Recycling Units 8 | . 4 . . . . . . . . . 2 . . . . . . . . . . . . . . . . . . . . . . . 2 . . . . . . . . . . . . . . . . . . . . . Scanalyzers . | . . . . . . . . . . . . . . . . . . . . . . . . . . . . . . . . . . . . . . . . . . . . . . . . . . . . . . . . . Garrison Access 45 | . . . . . 2 . 1 . 1 . 2 . 2 . 1 . 2 . 2 . . . . 1 . 5 . 4 . 1 . . . . 2 . 1 . . . . 4 . 2 . 3 . 3 . 2 . . . 1 3 . Terminal Hacks 687 | . 20 1 49 . 15 5 9 4 12 8 12 5 15 6 8 7 25 7 7 1 . 30 2 16 . 32 3 12 7 25 6 9 25 15 25 2 18 1 . . 8 40 13 30 2 12 2 8 4 22 25 . . 37 13 27 Record 113 | . . . 49 . . . . . . . 1 . . . . . 1 . . . . 11 2 . . . . . . 1 . 8 25 . . . . 1 . . 8 3 . . . . . . . 1 . . . 1 . 1 Part Schematic 33 | . . . . . . . . . . . 1 . 2 . . . 1 . 1 . . 13 . . . 2 . . . . . . . 1 2 . . . . . . 2 . 3 . 2 . 1 . . . . . 1 . 1 Robot Schematic 15 | . . . . . . . . . . . 1 . . . . . . . . . . 3 . . . 3 . . . . . . . . 4 . . . . . . 3 . 1 . . . . . . . . . . . . Robot Analysis 18 | . . . . . 1 . . . 1 . 1 . 1 . . . 2 . . . . . . . . . . 3 . 1 . . . . . . . . . . . 1 . 3 . 1 . . . 1 1 . . 1 . . Prototype ID Bank 41 | . 2 . . . . . 2 . . . . . 1 . . . 4 . 1 . . 3 . . . 8 . 1 . 2 . . . . 1 . 1 . . . . 2 . 2 . . . . . 1 2 . . 5 1 2 Open Door 16 | . . 1 . . . . . . . 1 . 1 . 1 . . . . . 1 . . . . . . 1 . . . 2 1 . . . . . . . . . . . . 1 . . . 1 . 1 . . . 3 1 Level Access Points 4 | . . . . . . . . . . . . . . . . . . . . . . . . . . . . . . . . . . . . . . . . . . 1 . . . . . . . 1 1 . . 1 . . Branch Access Points 11 | . 1 . . . . . . . 1 . . . . . . . . . . . . . . . . 1 . . . 1 . . . 1 . . 1 . . . . 2 . 1 . . . . . 1 . . . 1 . . Emergency Access Points 14 | . . . . . . 1 . 1 . 1 . . . 1 . 1 . 1 . . . . . . . . 1 . . . . . . . 1 1 . . . . . . 1 . 1 . . . 1 . . . . 2 . . Machine Index 15 | . . . . . . . 1 . . . . . 1 . . . 1 . . . . . . 1 . 1 . 1 . 1 . . . . 1 . 1 . . . . 1 . 1 . 1 . . . 1 . . . 1 . 1 Terminal Index 3 | . . . . . . . . . . . . . . . . . . . 1 . . . . . . . . . . . . . . . . . . . . . . . . . . . . . . . . . . 1 . 1 Fabricator Index 1 | . . . . . . . . . . . . . . . . . 1 . . . . . . . . . . . . . . . . . . . . . . . . . . . . . . . . . . . . . . . Garrison Index 8 | . . . . . . . . . . . 1 . . . . . . . . . . . . 1 . . . . . . . . . 1 . . 1 . . . . . . . . . . 1 . . 1 . . 1 . 1 Alert Level 38 | . 2 . . . . . 1 . 2 . 1 . 1 . 1 . 3 . . . . . . 1 . 2 . 1 . 3 . . . 1 1 . 1 . . . . 5 2 3 . 1 . 1 . 1 2 . . 1 1 . Unreport Threat 164 | . 3 . . . 3 2 5 1 4 5 3 3 4 3 7 4 5 4 4 . . . . 6 . 7 1 3 5 8 . . . 6 5 . 7 . . . . 6 7 2 . 4 1 5 1 6 8 . . 6 8 2 Locate Traps 24 | . 1 . . . . . . . 1 . 1 . 1 . . . 2 . . . . . . . . 1 . . . 1 1 . . 1 2 . 1 . . . . 2 1 1 . 1 . . . 2 1 . . 2 . 1 Disarm Traps 28 | . . . . . 3 . . . . . . . 1 . . . 1 . . . . . . . . . . . . 1 . . . 1 . . 2 . . . . 2 . . . . . . . . 3 . . 1 . 13 Reprogram Traps 34 | . 1 . . . 2 . . . 1 . 2 . . . . . 2 . . . . . . 2 . 1 . . . 1 1 . . . 4 . . . . . . 5 . 5 . 1 . . . 2 1 . . 3 . . Dispatch Records 2 | . 2 . . . . . . . . . . . . . . . . . . . . . . . . . . . . . . . . . . . . . . . . . . . . . . . . . . . . . . . Security Status 3 | . 1 . . . 1 . . . . . . . . . . . . . . . . . . . . . . . . 1 . . . . . . . . . . . . . . . . . . . . . . . . . . Surveillance Status 2 | . 1 . . . . . . . 1 . . . . . . . . . . . . . . . . . . . . . . . . . . . . . . . . . . . . . . . . . . . . . . . Patrol Status 4 | . . . . . 1 . . . . . . . . . . . . . . . . . . . . 2 . . . . . . . . . . 1 . . . . . . . . . . . . . . . . . . . Transport Status 3 | . 2 . . . . . . . . . . . . . . . . . . . . . . 1 . . . . . . . . . . . . . . . . . . . . . . . . . . . . . . . . Investigation Status 1 | . 1 . . . . . . . . . . . . . . . . . . . . . . . . . . . . . . . . . . . . . . . . . . . . . . . . . . . . . . . Recall Extermination 2 | . . . . . . . . . . . . . 1 . . . . . . . . . . . . . . . . . . . . . . . . . . . . . . . . . . . . . . . . 1 . . Recall Reinforcements 8 | . 1 . . . . . . . . . . . . . . . . . . . . . . 1 . . . 1 . 1 1 . . . . . . . . . . 1 . 1 . . . . . . . . . 1 . . Hauler Manifests 5 | . 2 . . . 1 . . . . . . . . . . . . . . . . . . . . . . . . . . . . . 1 . . . . . . . . . . . . . . 1 . . . . . . Registered Components 6 | . . . . . . . . . . . . . . . . . . . . . . . . . . . . . . 1 . . . . . . . . . . . 1 . 1 . . . . . 1 1 . . . . 1 Registered Prototypes 9 | . . . . . . . . . . . . . 1 . . . 1 . . . . . . . . 1 . 1 . . . . . . 1 . . . . . . 1 . 1 . . . . . . 1 . . . . 1 Zone Layout 40 | . . . . . 3 . . . 1 . . . 1 . . . 1 . . . . . . 3 . 3 . 1 . 2 1 . . 3 2 . 2 . . . . 2 . 5 . 1 . . . 3 2 . . 4 . . Garrison Registry 9 | . . . . . . 1 . 1 . . . 1 . . . 1 . 1 . . . . . . . . . . 1 . . . . . . 1 . . . . . . 1 . . . . . 1 . . . . . . . Patrol Navigation 7 | . . . . . . . . 1 . 1 . . . 1 . 1 . 1 . . . . . . . . . . 1 . . . . . . . . . . . . . . . . . 1 . . . . . . . . . Security Stations 2 | . . . . . . 1 . . . . . . . . . . . . . . . . . . . . . . . . . . . . . . . . . . . . 1 . . . . . . . . . . . . . Protovariant Controls 3 | . . . . . . . . . . . . . . . . . . . . . . . . . . . . . . . . . . . . . . . . . . . . . . . . . . . . . . 3 . . Disengage Seal 1 | . . . . . . . . . . . . . . . . . . . . . . . . . . . . . . . . . . . . . . . . . . . . . . . . . . . . . . . . 1 Fabricator Hacks 105 | . . . . . . . . . . . . . 8 . 4 . 2 . 2 . . . . 1 . 4 . 10 . 12 . . . . 16 . 4 . . . . 6 . 2 . 4 . 4 . . 16 . 2 8 . . Load Schematic 52 | . . . . . . . . . . . . . 4 . 2 . 1 . 1 . . . . . . 2 . 5 . 6 . . . . 8 . 2 . . . . 3 . 1 . 2 . 2 . . 8 . 1 4 . . Build 53 | . . . . . . . . . . . . . 4 . 2 . 1 . 1 . . . . 1 . 2 . 5 . 6 . . . . 8 . 2 . . . . 3 . 1 . 2 . 2 . . 8 . 1 4 . . Repair Station Hacks . | . . . . . . . . . . . . . . . . . . . . . . . . . . . . . . . . . . . . . . . . . . . . . . . . . . . . . . . . . Recycling Unit Hacks 5 | . 1 . . . . . . . . . 2 . . . . . . . . . . . . . . . . . . . . . . . 2 . . . . . . . . . . . . . . . . . . . . . Retrieve Matter 2 | . . . . . . . . . . . 1 . . . . . . . . . . . . . . . . . . . . . . . 1 . . . . . . . . . . . . . . . . . . . . . Retrieve Components 3 | . 1 . . . . . . . . . 1 . . . . . . . . . . . . . . . . . . . . . . . 1 . . . . . . . . . . . . . . . . . . . . . Scanalyzer . | . . . . . . . . . . . . . . . . . . . . . . . . . . . . . . . . . . . . . . . . . . . . . . . . . . . . . . . . . Garrison Access Hacks 33 | . . . . . 2 . 1 . 1 . 2 . 2 . 1 . 2 . 1 . . . . 1 . 3 . 2 . 1 . . . . 2 . 1 . . . . 2 . 2 . 2 . 2 . 1 . . . 1 1 . Unlock Access 15 | . . . . . 1 . 1 . 1 . 1 . 1 . 1 . 1 . . . . . . 1 . 1 . 1 . . . . . . 1 . . . . . . 1 . 1 . 1 . 1 . . . . . . . . Seal Access 17 | . . . . . . . . . . . 1 . 1 . . . 1 . 1 . . . . . . 2 . 1 . 1 . . . . 1 . 1 . . . . 1 . 1 . 1 . 1 . 1 . . . 1 1 . Coupler Status 1 | . . . . . 1 . . . . . . . . . . . . . . . . . . . . . . . . . . . . . . . . . . . . . . . . . . . . . . . . . . . Unauthorized Hacks 175 | . 7 . . . 6 2 3 4 4 3 7 3 9 2 2 5 8 3 2 . . . . 8 . 7 1 3 4 7 1 . . 5 7 4 4 . . . . 6 4 8 2 3 1 3 2 6 8 . . 6 2 3 Terminals 159 | . 5 . . . 6 2 3 4 4 3 6 3 6 2 1 5 7 3 2 . . . . 7 . 6 1 2 4 7 1 . . 5 7 4 4 . . . . 5 4 8 2 2 1 2 2 5 8 . . 6 1 3 Track 10 | . . . . . . . . 1 . . . 1 . . . 2 . . . . . . . . . . . . 2 . . . . . . 2 . . . . . . 1 . 1 . . . . . . . . . . . Assimilate 6 | . . . . . 2 . . . 1 . . . 1 . . . . . . . . . . 1 . . . . . . . . . . . . . . . . . . . . . . . . . . 1 . . . . . Botnet 138 | . 5 . . . 4 2 3 3 3 3 6 2 5 2 1 3 7 3 2 . . . . 5 . 5 1 2 2 7 1 . . 5 6 2 4 . . . . 5 3 7 1 2 1 2 2 5 6 . . 6 1 3 Detonate 1 | . . . . . . . . . . . . . . . . . . . . . . . . . . . . . . . . . . . . . . . . . . . . . . . . . . . 1 . . . . . Operators 4 | . . . . . . . . . . . . . . . . . . . . . . . . 1 . 1 . . . . . . . . 1 . . . . . . . . 1 . . . . . . . . . . . . Fabricators 7 | . . . . . . . . . . . 1 . 3 . 1 . 1 . . . . . . 1 . . . . . . . . . . . . . . . . . . . . . . . . . . . . . . . . Fabnet 7 | . . . . . . . . . . . 1 . 3 . 1 . 1 . . . . . . 1 . . . . . . . . . . . . . . . . . . . . . . . . . . . . . . . . Repair Stations . | . . . . . . . . . . . . . . . . . . . . . . . . . . . . . . . . . . . . . . . . . . . . . . . . . . . . . . . . . Recycling Units 2 | . 2 . . . . . . . . . . . . . . . . . . . . . . . . . . . . . . . . . . . . . . . . . . . . . . . . . . . . . . . Mask 2 | . 2 . . . . . . . . . . . . . . . . . . . . . . . . . . . . . . . . . . . . . . . . . . . . . . . . . . . . . . . Scanalyzers . | . . . . . . . . . . . . . . . . . . . . . . . . . . . . . . . . . . . . . . . . . . . . . . . . . . . . . . . . . Garrison Access 7 | . . . . . . . . . . . . . . . . . . . . . . . . . . 1 . 1 . . . . . . . . . . . . . 1 . . . 1 . 1 . 1 . . . . 1 . Watchers 7 | . . . . . . . . . . . . . . . . . . . . . . . . . . 1 . 1 . . . . . . . . . . . . . 1 . . . 1 . 1 . 1 . . . . 1 . Data Cores Recovered 14 | . . . . . . . . . 1 . . . 2 . . . 1 . 2 . . . . 1 . . . . . 1 . . . . . . . . . . . . . 2 . . . . . 1 2 . . 1 . . Used 7 | . . . . . . . . . 1 . . . 1 . . . . . 1 . . . . . . . . . . . . . . . . . . . . . . . . 1 . . . . . 1 1 . . 1 . . Hacking Detections 128 | . 5 . . . 3 3 2 3 1 3 5 2 6 2 3 3 8 3 4 . . . . 5 . 6 2 4 2 6 . . . 4 6 . 4 . . . . 3 1 5 . 1 1 2 2 3 5 . . 6 1 3 Full Trace Events 4 | . . . . . . . . . . . 1 . . . 1 . . 1 . . . . . . . . . . . . . . . . . . . . . . . . . . . . . 1 . . . . . . . . Feedback Events . | . . . . . . . . . . . . . . . . . . . . . . . . . . . . . . . . . . . . . . . . . . . . . . . . . . . . . . . . . Feedback Blocked . | . . . . . . . . . . . . . . . . . . . . . . . . . . . . . . . . . . . . . . . . . . . . . . . . . . . . . . . . . Robot Schematics Acquired 15 | . . . . . . . . . . . 1 . . . . . . . . . . 3 . . . 3 . . . . . . . . 4 . . . . . . 3 . 1 . . . . . . . . . . . . Robots Built 120 | . . . . . . . . . . . . . 12 . 6 . 3 . 3 . . . . 2 . 6 . 12 . 14 . . . . 19 . 4 . . . . 2 . 2 . 4 . 4 . . 17 . 2 8 . . Authchips . | . . . . . . . . . . . . . . . . . . . . . . . . . . . . . . . . . . . . . . . . . . . . . . . . . . . . . . . . . Time 4504 | . . . . . . . . . . . . . 270 . 116 . 58 . 38 . . . . 152 . 232 . 366 . 494 . . . . 823 . 186 . . . . 169 . 102 . 164 . 195 . . 746 . 62 331 . . Total Robot Build Rating 614 | . . . . . . . . . . . . . 36 . 18 . 9 . 9 . . . . 10 . 18 . 38 . 56 . . . . 101 . 28 . . . . 12 . 16 . 30 . 30 . . 127 . 14 62 . . Part Schematics Acquired 35 | . . . . . . . . . . . 1 . 2 . . . 1 . 1 . . 13 . . . 2 . . . . . . . 1 2 . . . . . . 1 . 3 . 2 . 1 . . . . . 4 . 1 Parts Built 4 | . . . . . . . . . . . . . . . . . . . . . . . . . . . . . . . . . . . . . . . . . . 4 . . . . . . . . . . . . . . Authchips . | . . . . . . . . . . . . . . . . . . . . . . . . . . . . . . . . . . . . . . . . . . . . . . . . . . . . . . . . . Time 83 | . . . . . . . . . . . . . . . . . . . . . . . . . . . . . . . . . . . . . . . . . . 83 . . . . . . . . . . . . . . Total Part Build Rating 16 | . . . . . . . . . . . . . . . . . . . . . . . . . . . . . . . . . . . . . . . . . . 16 . . . . . . . . . . . . . . Parts Repaired . | . . . . . . . . . . . . . . . . . . . . . . . . . . . . . . . . . . . . . . . . . . . . . . . . . . . . . . . . . Time . | . . . . . . . . . . . . . . . . . . . . . . . . . . . . . . . . . . . . . . . . . . . . . . . . . . . . . . . . . Parts Recycled . | . . . . . . . . . . . . . . . . . . . . . . . . . . . . . . . . . . . . . . . . . . . . . . . . . . . . . . . . . Recycled Matter . | . . . . . . . . . . . . . . . . . . . . . . . . . . . . . . . . . . . . . . . . . . . . . . . . . . . . . . . . . Retrieved Matter . | . . . . . . . . . . . . . . . . . . . . . . . . . . . . . . . . . . . . . . . . . . . . . . . . . . . . . . . . . Retrieved Components 6 | . 3 . . . . . . . . . 2 . . . . . . . . . . . . . . . . . . . . . . . 1 . . . . . . . . . . . . . . . . . . . . . Parts Scanalyzed . | . . . . . . . . . . . . . . . . . . . . . . . . . . . . . . . . . . . . . . . . . . . . . . . . . . . . . . . . . Part Schematics Acquired . | . . . . . . . . . . . . . . . . . . . . . . . . . . . . . . . . . . . . . . . . . . . . . . . . . . . . . . . . . Parts Damaged . | . . . . . . . . . . . . . . . . . . . . . . . . . . . . . . . . . . . . . . . . . . . . . . . . . . . . . . . . . Bothacking | -11 -10 -10 -10 -9 -8 -8 -8 -8 -8 -8 -7 -7 -7 -7 -7 -7 -7 -7 -7 -7 -7 -7 -6 -6 -6 -6 -6 -6 -6 -6 -6 -6 -6 -6 -5 -5 -4 -4 -4 -4 -3 -3 -3 -3 -3 -3 -3 -3 -3 -3 -3 -3 -2 -2 -1 -1 ------------ Run | Yrd Mat Min Exi Min Mat Gar Mat Gar Mat Gar Fac Gar Fac Gar Fac Gar Fac Gar Fac Low Low Dat Pro Fac Gar Fac Gar Fac Gar Fac Ext Cet Arc Hub Fac Gar Fac Upp Upp War Pro Res Gar Res Gar Res Gar Res Gar Res Arm Lab Res Tes Acc Com Used RIF Installer . | . . . . . . . . . . . . . . . . . . . . . . . . . . . . . . . . . . . . . . . . . . . . . . . . . . . . . . . . . Robots Hacked 51 | . . . . . . . . . . . . . . . . . . . . . . . . 7 4 5 4 . 10 4 5 . 3 2 3 3 . . . 1 . . . . . . . . . . . . . . . . Non-combat . | . . . . . . . . . . . . . . . . . . . . . . . . . . . . . . . . . . . . . . . . . . . . . . . . . . . . . . . . . Combat 51 | . . . . . . . . . . . . . . . . . . . . . . . . 7 4 5 4 . 10 4 5 . 3 2 3 3 . . . 1 . . . . . . . . . . . . . . . . Robot Hacks Applied . | . . . . . . . . . . . . . . . . . . . . . . . . . . . . . . . . . . . . . . . . . . . . . . . . . . . . . . . . . Relay Couplers Released 133 | . . . . . . 8 . 11 . 10 . 9 . 12 . 9 . 7 . . . . . . 8 . 7 . 6 3 . . . . . 8 . . . . . 1 9 . 7 . 9 . 7 . . . 2 . . . Machine Destruction 125 | . . . . . . 7 . 10 . 10 . 9 . 12 . 9 . 7 . . . . . . 8 . 7 . 6 . . . . . . 8 . . . . . 1 7 . 7 . 8 . 7 . . . 2 . . . Programmers 8 | . . . . . . 1 . 1 . . . . . . . . . . . . . . . . . . . . . 3 . . . . . . . . . . . . 2 . . . 1 . . . . . . . . . Fabnet Peak Effective % 15 | . . . . . . . . . . . . . . . . . . . . . . . 15 15 15 15 15 15 15 15 15 15 15 15 9 9 1 1 1 1 . . . . . . . . . . . . . . . . Autooverrided 51 | . . . . . . . . . . . . . . . . . . . . . . . . 7 4 5 4 . 10 4 5 . 3 2 3 3 . . . 1 . . . . . . . . . . . . . . . . Robots Rewired 40 | . . . . . . . . . . 6 . 4 . . . 3 . . . 2 . . . . . . 3 . 2 . . . . . . 2 . . . . . . 2 . 2 . 3 . 2 . 9 . . . . . Allies Hacked 19 | . . . . . . . . . . . . . . . . . . . . . . . . . . . . . . . . . . 3 1 2 . . 1 1 . 1 . . . 1 . 1 . 2 4 . . 1 1 . Hacks Repelled 4 | . . . . . . . . . . . . . . . . . . . . . . . . . . . . . . . . . . . . . . . . 2 . . . . 1 . . . 1 . . . . . . . Allies | -11 -10 -10 -10 -9 -8 -8 -8 -8 -8 -8 -7 -7 -7 -7 -7 -7 -7 -7 -7 -7 -7 -7 -6 -6 -6 -6 -6 -6 -6 -6 -6 -6 -6 -6 -5 -5 -4 -4 -4 -4 -3 -3 -3 -3 -3 -3 -3 -3 -3 -3 -3 -3 -2 -2 -1 -1 -------- Run | Yrd Mat Min Exi Min Mat Gar Mat Gar Mat Gar Fac Gar Fac Gar Fac Gar Fac Gar Fac Low Low Dat Pro Fac Gar Fac Gar Fac Gar Fac Ext Cet Arc Hub Fac Gar Fac Upp Upp War Pro Res Gar Res Gar Res Gar Res Gar Res Arm Lab Res Tes Acc Com Total Allies 256 | . . 3 . . 1 . . 2 1 6 . 4 12 2 6 5 6 2 3 2 . . . 9 4 14 10 12 12 19 9 . 3 5 23 7 4 . 1 1 . 3 2 2 4 5 3 5 2 . 30 . 2 9 1 . Largest Group 25 | . . 3 3 . 1 1 . 2 1 5 2 5 10 10 11 9 8 9 12 11 9 6 6 6 3 5 7 15 18 22 24 22 25 22 20 21 22 22 23 22 . 2 2 4 4 5 5 8 9 6 14 9 11 11 6 . Highest-Rated Group 1112 | . . 40 40 . 10 10 . 51 10 111 52 133 162 162 189 268 268 398 439 398 346 248 248 289 108 125 328 539 635 937 999 865 947 864 890 906 1056 1056 1112 1058 . 108 238 402 276 340 253 491 504 319 771 514 626 589 392 . Highest-Rated Ally 119 | . . 16 16 . 10 10 . 31 10 31 31 31 31 39 39 95 95 95 95 95 95 95 95 95 92 85 95 88 119 119 109 109 109 109 109 109 109 109 109 116 . 54 119 119 119 88 82 82 82 82 82 82 82 82 82 . Warlord Squad Rendezvous 22 | . . . . . . . . . . . . . . . . . . . . . . . . 4 . 3 . 3 . 3 . . . 2 4 . 3 . . . . . . . . . . . . . . . . . . . Dakka 5 | . . . . . . . . . . . . . . . . . . . . . . . . . . . . . . 2 . . . . 1 . 2 . . . . . . . . . . . . . . . . . . . Muscle 3 | . . . . . . . . . . . . . . . . . . . . . . . . 1 . . . 1 . . . . . 1 . . . . . . . . . . . . . . . . . . . . . . Geek 2 | . . . . . . . . . . . . . . . . . . . . . . . . 1 . 1 . . . . . . . . . . . . . . . . . . . . . . . . . . . . . . Ranger 4 | . . . . . . . . . . . . . . . . . . . . . . . . . . 1 . 1 . . . . . . 2 . . . . . . . . . . . . . . . . . . . . . Pyro 2 | . . . . . . . . . . . . . . . . . . . . . . . . . . . . . . 1 . . . . . . 1 . . . . . . . . . . . . . . . . . . . Chimera 5 | . . . . . . . . . . . . . . . . . . . . . . . . 2 . 1 . 1 . . . . . . 1 . . . . . . . . . . . . . . . . . . . . . Ghost 1 | . . . . . . . . . . . . . . . . . . . . . . . . . . . . . . . . . . 1 . . . . . . . . . . . . . . . . . . . . . . Total Orders 18 | . . . . . . . . . . 4 . 2 . . . 2 . . . . . . . . . . . . . . 2 . . 2 . . . . . 6 . . . . . . . . . . . . . . . . STAY 10 | . . . . . . . . . . 2 . 1 . . . 1 . . . . . . . . . . . . . . 1 . . 1 . . . . . 4 . . . . . . . . . . . . . . . . FOLLOW 8 | . . . . . . . . . . 2 . 1 . . . 1 . . . . . . . . . . . . . . 1 . . 1 . . . . . 2 . . . . . . . . . . . . . . . . Ally Attacks 1580 | . . . 6 . . . . 8 . 39 4 3 23 42 9 75 8 30 23 1 21 15 3 32 13 42 37 1 60 65 37 6 8 170 15 18 32 . 11 227 . 9 5 30 24 53 14 27 42 12 170 . 41 40 29 . Total Damage 45721 | . . . 62 . . . . 197 . 828 62 66 260 452 82 1055 156 613 446 10 525 286 69 769 335 521 1324 30 1514 2666 882 161 189 3459 374 476 923 . 317 9958 . 636 198 1374 961 1429 264 625 1762 411 5622 . 1383 1183 806 . Kills 257 | . . . . . . . . 3 . 13 . . 4 4 . 6 2 1 4 . 3 1 . 5 . 2 6 . 9 18 7 1 1 18 5 1 3 . 2 52 . 2 1 9 7 5 4 1 10 2 28 . 7 6 4 . Allies Corrupted 11 | . . . . . . . . . . . . . 1 . 2 . . . . 2 . . . . . 1 . . . . . . . 1 . 1 . . . 2 . . . . . . . 1 . . . . . . . . Allies Melted 12 | . . . . . . . . . . . . . . . . . . . . . . . . . . . . . 1 . 1 . . . . . . . . 2 . 1 . . . 1 . . . . . . 2 . . 4 Intel | -11 -10 -10 -10 -9 -8 -8 -8 -8 -8 -8 -7 -7 -7 -7 -7 -7 -7 -7 -7 -7 -7 -7 -6 -6 -6 -6 -6 -6 -6 -6 -6 -6 -6 -6 -5 -5 -4 -4 -4 -4 -3 -3 -3 -3 -3 -3 -3 -3 -3 -3 -3 -3 -2 -2 -1 -1 ------- Run | Yrd Mat Min Exi Min Mat Gar Mat Gar Mat Gar Fac Gar Fac Gar Fac Gar Fac Gar Fac Low Low Dat Pro Fac Gar Fac Gar Fac Gar Fac Ext Cet Arc Hub Fac Gar Fac Upp Upp War Pro Res Gar Res Gar Res Gar Res Gar Res Arm Lab Res Tes Acc Com Robot Analysis Total 18 | . . . . . 1 . . . 1 . 1 . 1 . . . 2 . . . . . . . . . . 3 . 1 . . . . . . . . . . . 1 . 3 . 1 . . . 1 1 . . 1 . . Derelict Logs Recovered 8 | . . 2 . . . . . . . . . . . . . . . . . 1 2 . . . . . . . . . . . . . . . . 1 2 . . . . . . . . . . . . . . . . . Drone Launches 16 | . . 16 . . . . . . . . . . . . . . . . . . . . . . . . . . . . . . . . . . . . . . . . . . . . . . . . . . . . . . Drone Recoveries . | . . . . . . . . . . . . . . . . . . . . . . . . . . . . . . . . . . . . . . . . . . . . . . . . . . . . . . . . . Exploration | -11 -10 -10 -10 -9 -8 -8 -8 -8 -8 -8 -7 -7 -7 -7 -7 -7 -7 -7 -7 -7 -7 -7 -6 -6 -6 -6 -6 -6 -6 -6 -6 -6 -6 -6 -5 -5 -4 -4 -4 -4 -3 -3 -3 -3 -3 -3 -3 -3 -3 -3 -3 -3 -2 -2 -1 -1 ------------- Run | Yrd Mat Min Exi Min Mat Gar Mat Gar Mat Gar Fac Gar Fac Gar Fac Gar Fac Gar Fac Low Low Dat Pro Fac Gar Fac Gar Fac Gar Fac Ext Cet Arc Hub Fac Gar Fac Upp Upp War Pro Res Gar Res Gar Res Gar Res Gar Res Arm Lab Res Tes Acc Com Turns Passed 41743 | 136 1194 997 433 107 301 1173 307 1243 424 1271 636 764 852 779 770 1053 646 595 615 396 403 177 288 998 992 994 1028 851 771 1252 1191 236 55 612 984 870 546 297 368 769 638 1097 692 593 965 913 932 711 669 566 1234 41 1122 1323 486 1387 Spaces Moved 36562 | 60 654 582 310 112 243 832 205 1027 378 1039 676 690 876 710 803 1003 626 520 613 336 381 155 280 820 870 990 964 782 720 1004 1044 202 43 549 942 687 518 283 362 384 637 1031 607 574 895 885 862 686 622 535 1035 28 1066 1263 450 1111 Core 8 | 8 . . . . . . . . . . . . . . . . . . . . . . . . . . . . . . . . . . . . . . . . . . . . . . . . . . . . . . . . Treads 1494 | 52 654 582 206 . . . . . . . . . . . . . . . . . . . . . . . . . . . . . . . . . . . . . . . . . . . . . . . . . . . . . Legs 35060 | . . . 104 112 243 832 205 1027 378 1039 676 690 876 710 803 1003 626 520 613 336 381 155 280 820 870 990 964 782 720 1004 1044 202 43 549 942 687 518 283 362 384 637 1031 607 574 895 885 862 686 622 535 1035 28 1066 1263 450 1111 Wheels . | . . . . . . . . . . . . . . . . . . . . . . . . . . . . . . . . . . . . . . . . . . . . . . . . . . . . . . . . . Hover . | . . . . . . . . . . . . . . . . . . . . . . . . . . . . . . . . . . . . . . . . . . . . . . . . . . . . . . . . . Flight . | . . . . . . . . . . . . . . . . . . . . . . . . . . . . . . . . . . . . . . . . . . . . . . . . . . . . . . . . . Fastest Speed 50 | 50 160 160 90 90 90 90 90 90 90 90 90 90 90 90 90 90 90 90 90 90 90 90 90 90 90 90 90 90 90 90 90 90 90 90 93 93 93 93 93 93 93 93 93 93 93 93 93 93 93 56 93 93 93 93 93 56 Average Speed 94 | 145 160 160 136 90 90 90 90 90 90 90 90 90 90 90 90 90 90 90 90 90 90 90 90 90 90 90 90 90 90 90 90 90 90 90 93 93 93 93 93 93 93 93 93 93 93 93 93 93 93 92 93 93 93 93 93 89 Slowest Speed 160 | 160 160 160 160 90 90 90 90 90 90 90 90 90 90 90 90 90 90 90 90 90 90 90 90 90 90 90 90 90 90 90 90 90 90 90 93 93 93 93 93 93 93 93 93 93 93 93 93 93 93 93 93 93 93 93 93 93 Overloaded Moves 97 | . . . . . . . . . . . . . . . . . . . . . . . . . . . . . . . . . . . . . . . . . . . . . . . . . . 3 . . . . . 94 Propulsion Burnouts . | . . . . . . . . . . . . . . . . . . . . . . . . . . . . . . . . . . . . . . . . . . . . . . . . . . . . . . . . . Robots Hopped . | . . . . . . . . . . . . . . . . . . . . . . . . . . . . . . . . . . . . . . . . . . . . . . . . . . . . . . . . . Cave-ins Triggered . | . . . . . . . . . . . . . . . . . . . . . . . . . . . . . . . . . . . . . . . . . . . . . . . . . . . . . . . . . Exploration Rate (%) 55 | 5 93 81 63 33 29 72 33 74 34 91 30 84 30 84 23 95 21 78 23 56 60 81 50 27 96 33 87 23 95 29 95 85 68 87 26 85 21 58 53 41 87 32 95 27 90 31 97 28 93 21 68 6 34 91 12 31 Regions Visited 56 Branch Regions 19 Pre-discovered Areas 5 | . . 1 1 . . . . . . . . . . . . . . . . 1 . 1 . . . . . . . . . . . . . . . 1 . . . . . . . . . . . . . . . . . . Known Exits Taken 41 | 1 1 1 1 1 1 . 1 . 1 . 1 . 1 . 1 . 1 . 1 1 1 1 1 1 . 1 . 1 . 1 1 1 1 1 1 . 1 1 1 1 1 1 . 1 . 1 . 1 . 1 1 1 1 1 1 . Unknown Exits Taken . | . . . . . . . . . . . . . . . . . . . . . . . . . . . . . . . . . . . . . . . . . . . . . . . . . . . . . . . . . Scrap Searched 14 | . . 1 . . . . . . . . . . . . . . . . . 4 1 . 1 . . . . . . . . . . . . . . 2 2 . 3 . . . . . . . . . . . . . . . Spaces Dug 249 | . . . . . . 9 . 4 . 2 4 . . . 12 . 4 . . . . . . 4 . 7 . 32 . 4 . . . 5 15 1 8 . . . 4 21 . 8 8 24 . 22 . 9 27 2 2 4 7 . Terrain Destroyed 3483 | . 12 4 . . 2 112 7 19 8 9 16 87 28 51 90 172 26 . 42 4 22 1 21 189 118 139 . 117 58 67 33 5 . 701 41 37 67 . 12 18 23 70 75 36 105 103 180 38 111 48 132 2 51 49 96 29 Melee . | . . . . . . . . . . . . . . . . . . . . . . . . . . . . . . . . . . . . . . . . . . . . . . . . . . . . . . . . . Projectile 1556 | . . . . . 2 33 7 19 8 9 16 . 28 . 37 . 26 . 23 4 22 1 8 86 . 48 . 27 6 47 23 5 . 88 41 37 36 . 12 18 23 70 75 36 50 103 33 38 40 48 128 2 51 49 64 29 AOE 1927 | . 12 4 . . . 79 . . . . . 87 . 51 53 172 . . 19 . . . 13 103 118 91 . 90 52 20 10 . . 613 . . 31 . . . . . . . 55 . 147 . 71 . 4 . . . 32 . Terrain Rammed . | . . . . . . . . . . . . . . . . . . . . . . . . . . . . . . . . . . . . . . . . . . . . . . . . . . . . . . . . . Walls Destroyed . | . . . . . . . . . . . . . . . . . . . . . . . . . . . . . . . . . . . . . . . . . . . . . . . . . . . . . . . . . Machines Disabled . | . . . . . . . . . . . . . . . . . . . . . . . . . . . . . . . . . . . . . . . . . . . . . . . . . . . . . . . . . Actions | -11 -10 -10 -10 -9 -8 -8 -8 -8 -8 -8 -7 -7 -7 -7 -7 -7 -7 -7 -7 -7 -7 -7 -6 -6 -6 -6 -6 -6 -6 -6 -6 -6 -6 -6 -5 -5 -4 -4 -4 -4 -3 -3 -3 -3 -3 -3 -3 -3 -3 -3 -3 -3 -2 -2 -1 -1 --------- Run | Yrd Mat Min Exi Min Mat Gar Mat Gar Mat Gar Fac Gar Fac Gar Fac Gar Fac Gar Fac Low Low Dat Pro Fac Gar Fac Gar Fac Gar Fac Ext Cet Arc Hub Fac Gar Fac Upp Upp War Pro Res Gar Res Gar Res Gar Res Gar Res Arm Lab Res Tes Acc Com Total 43608 | 103 731 620 321 117 292 1071 283 1190 424 1215 703 833 939 849 850 1152 708 646 678 430 440 192 315 1079 1080 1092 1124 929 845 1362 1302 260 59 695 1058 940 591 316 396 809 691 1191 757 643 1054 995 1013 767 731 617 1339 41 1215 1433 533 1549 Wait 2927 | 33 2 3 . 5 13 63 21 44 31 37 4 30 26 28 1 38 56 34 29 72 40 10 20 165 49 27 30 126 14 311 218 40 17 10 71 140 29 34 22 353 10 49 35 9 12 13 26 29 9 19 107 . 63 51 16 183 Move 36505 | 59 653 581 309 111 242 831 204 1026 377 1038 675 689 875 709 802 1002 625 519 612 335 380 154 279 819 869 989 963 781 719 1003 1043 201 42 548 941 685 517 282 361 383 636 1030 606 573 894 884 861 685 621 534 1034 27 1065 1262 449 1111 Hop . | . . . . . . . . . . . . . . . . . . . . . . . . . . . . . . . . . . . . . . . . . . . . . . . . . . . . . . . . . Pick Up 59 | 3 5 . 1 . 3 4 . 2 . 4 1 1 . 1 . . 1 . 4 2 . . . 1 3 . 2 . 5 . . . . 1 1 . 2 . . 1 2 5 . . 1 . . . . . . 1 . 2 . . Fast Attach 71 | 7 5 3 3 . 1 2 1 4 . . . 1 . . . 1 . . . . . 8 . . 2 . 2 . 1 . . . . . . 1 . . . 6 . 2 . . 2 . . 1 . . . 1 . 10 . 7 Attach 22 | . 1 2 1 . . 2 . . . 1 1 . 1 . . 1 . . 2 . . . . 1 . 1 . . 1 . . . . . 1 2 . . . . . 1 . . . . . . . . 1 1 . 1 . . Detach 25 | . . 3 . . 2 1 . . . . . . . . . . . . 1 . . 3 . . 1 . . . . . . . . . . 2 . . . 2 . 2 . . 1 . . . . . . 1 1 4 . 1 Swap 17 | . 3 1 . 1 1 1 . 4 . . . . . . . . . . . 1 . . . . . . . . 3 . . . . . . . . . . . . 1 . . . . . . . . . . . . . 1 Drop 102 | . 11 3 7 . 3 4 1 6 . 3 . 2 . . . . . . 3 4 . 5 . . 4 . 3 . 5 . . . . 1 . 2 1 . . 6 2 5 . . 2 . . . . . . 2 1 10 . 6 Fire 2982 | 1 36 13 . . 23 126 29 72 15 85 16 83 29 85 32 85 24 56 23 7 17 10 12 75 122 60 87 15 84 40 30 19 . 108 34 92 35 . 11 51 31 80 93 41 105 83 84 37 75 52 133 8 72 80 63 203 Melee . | . . . . . . . . . . . . . . . . . . . . . . . . . . . . . . . . . . . . . . . . . . . . . . . . . . . . . . . . . Ram . | . . . . . . . . . . . . . . . . . . . . . . . . . . . . . . . . . . . . . . . . . . . . . . . . . . . . . . . . . Kick 11 | . . . . . 1 . . . 1 . 4 . 2 . . . 2 . . . . . . . . . . . . . . . . . . . . . . . . . . . . . . . . . . . . . . 1 Crush 10 | . 5 5 . . . . . . . . . . . . . . . . . . . . . . . . . . . . . . . . . . . . . . . . . . . . . . . . . . . . . . Escape Stasis 80 | . . . . . . . . 1 . . . . . 3 . . . 16 . . . . . . 8 . 10 5 . . . . . . . 2 . . . . . 3 6 6 3 . 6 . 3 . 3 . . . . 5 Rewire 109 | . . . . . . 1 . . . 11 . 10 . . . 5 . . . 5 . . . . . . 8 . 4 . . . . . . 2 . . . . . . 2 . 7 1 19 . 5 1 28 . . . . . Trap . | . . . . . . . . . . . . . . . . . . . . . . . . . . . . . . . . . . . . . . . . . . . . . . . . . . . . . . . . . Miscellaneous 688 | . 10 6 . . 3 36 27 31 . 36 2 17 6 23 15 20 . 21 4 4 3 2 4 18 22 15 19 2 9 8 11 . . 27 10 12 7 . 2 7 10 13 15 14 27 14 17 15 18 11 33 . 13 13 5 31 Route ------- -11/Scrapyard -10/Materials (discovered 4 exits: *Mat x3 / *Min) -10/Mines (discovered 3 exits: *Mat x2 / *Exi) -10/Exiles (discovered 2 exits: *Min x2) -9/Mines -8/Materials (discovered 2 exits: *Fac / Gar) -8/Garrison (discovered 3 exits: *Mat x3) -8/Materials -8/Garrison (discovered 3 exits: *Mat x3) -8/Materials (discovered 2 exits: *Fac / Gar) -8/Garrison (discovered 3 exits: *Fac x3) -7/Factory -7/Garrison (discovered 3 exits: *Fac x3) -7/Factory (discovered 2 exits: *Low / Gar) -7/Garrison (discovered 3 exits: *Fac x3) -7/Factory (discovered 2 exits: *Fac / Gar) -7/Garrison (discovered 3 exits: *Fac x3) -7/Factory (discovered 3 exits: *Fac / *Low / Gar) -7/Garrison (discovered 3 exits: *Fac x3) -7/Factory -7/Lower Caves -7/Lower Caves -7/Data Miner -6/Proximity Caves -6/Factory (discovered 3 exits: *Fac / *Low / Gar) -6/Garrison (discovered 3 exits: *Fac x3) -6/Factory (discovered 6 exits: *Fac / Low x2 / Ext x2 / Gar) -6/Garrison (discovered 3 exits: *Fac x3) -6/Factory (discovered 2 exits: *Fac / Gar) -6/Garrison (discovered 3 exits: *Fac x3) -6/Factory (discovered 4 exits: *Low x2 / *Ext x2) -6/Extension (discovered 3 exits: *Fac x2 / *Cet) -6/Cetus (discovered 2 exits: *Fac / *Arc) -6/Archives -6/Hub_04(d) (discovered 4 exits: *Fac x4) -5/Factory (discovered 2 exits: *Upp / Gar) -5/Garrison (discovered 4 exits: *Fac x3 / *Fac) -4/Factory (discovered 3 exits: *Res / *Upp x2) -4/Upper Caves -4/Upper Caves (discovered 2 exits: *Res / *War) -4/Warlord -3/Proximity Caves -3/Research (discovered 7 exits: Res x3 / *Arm / *Qua x2 / Gar) -3/Garrison (discovered 3 exits: *Res x3) -3/Research (discovered 6 exits: *Res x2 / Arm / *Qua x2 / Gar) -3/Garrison (discovered 3 exits: *Res x3) -3/Research (discovered 2 exits: *Res / Gar) -3/Garrison (discovered 4 exits: *Res x4) -3/Research (discovered 3 exits: *Res / *Qua / Gar) -3/Garrison (discovered 3 exits: *Res x3) -3/Research (discovered 6 exits: Res x3 / *Arm / *Qua x2) -3/Armory (discovered 3 exits: Res x2 / *Lab) -3/Lab -2/Research (discovered 3 exits: *Acc / *Tes x2) -2/Testing -1/Access -1/Command (discovered 2 exits: *Sur x2) By MAIN.C's Side History --------- Turn | Location | Event 1 | -11/Scrapyard | Upgraded with Propulsion slot (x1) 1 | -11/Scrapyard | Upgraded with Utility slot (x1) 1 | -11/Scrapyard | Upgraded with Weapon slot (x1) 3 | -11/Scrapyard | Identified exit to Materials 3 | -11/Scrapyard | Discovered exit to Materials (range 15) 137 | -11/Scrapyard | Entered Materials 309 | -10/Materials | Build established: Hacker-Mutant 450 | -10/Materials | Identified exit to Mines 450 | -10/Materials | Discovered exit to Mines (range 7) 753 | -10/Materials | Identified exit to Materials 753 | -10/Materials | Discovered exit to Materials (range 17) 903 | -10/Materials | Discovered exit to Materials (range 11) 1158 | -10/Materials | Discovered exit to Materials (range 10) 1331 | -10/Materials | Entered Mines 1333 | -10/Mines | Reached level 2 1336 | -10/Mines | Found the Drone Emporium 1344 | -10/Mines | Found Prototype Device 1344 | -10/Mines | Identified Decoy Drone Bay 1413 | -10/Mines | Lost 16 allies 1699 | -10/Mines | Identified exit to Exiles 1699 | -10/Mines | Discovered exit to Materials (range 5) 1704 | -10/Mines | Learned location of Storage (-9) 1830 | -10/Mines | Discovered exit to Materials (range 17) 1859 | -10/Mines | Assisted by bots powering up and referring to "LRC-V3" 2319 | -10/Mines | Deemed a non-threat by the Exiles lab entrance 2328 | -10/Mines | Entered Exiles 2328 | -10/Exiles | Accompanied by 3 allies 2349 | -10/Exiles | Identified exit to Mines 2349 | -10/Exiles | Discovered exit to Mines (range 16) 2368 | -10/Exiles | Met 8R-AWN 2396 | -10/Exiles | Met EX-HEX 2440 | -10/Exiles | Met EX-BIN 2471 | -10/Exiles | Aligned with FarCom system 2472 | -10/Exiles | Given EX-Vault access code 2565 | -10/Exiles | Opened EX-Vault 2596 | -10/Exiles | Warned to stay clear of 0b10 Research branches 2630 | -10/Exiles | Exiles lab attacked by MAIN.C 2659 | -10/Exiles | Found Prototype Leg 2659 | -10/Exiles | Identified Potential Leg 2662 | -10/Exiles | Found Potential Leg 2665 | -10/Exiles | Found Prototype Energy Cannon 2665 | -10/Exiles | Identified Latent Energy Streamer 2673 | -10/Exiles | Found Prototype Ballistic Gun 2727 | -10/Exiles | Learned location of Zion (-6) 2751 | -10/Exiles | Discovered exit to Mines (range 14) 2755 | -10/Exiles | Lost 3 allies 2761 | -10/Exiles | Stole two prototypes: Potential Leg, XL Autogun Array 2761 | -10/Exiles | Entered Mines 2763 | -9/Mines | Assembled infested the area 2763 | -9/Mines | Reached level 3 2830 | -9/Mines | Identified exit to Materials 2830 | -9/Mines | Discovered exit to Materials (range 9) 2868 | -9/Mines | Entered Materials 2870 | -8/Materials | Reached level 4 2870 | -8/Materials | Reached level 5 2870 | -8/Materials | Reached level 6 3076 | -8/Materials | Identified exit to Factory 3076 | -8/Materials | Discovered exit to Factory (range 18) 3126 | -8/Materials | Identified exit to Garrison 3169 | -8/Materials | Entered Garrison 3169 | -8/Garrison | Accompanied by 1 ally 3171 | -8/Garrison | Reached level 7 3171 | -8/Garrison | Upgraded with Utility slot (x1) 3187 | -8/Garrison | Triggered checkpoint 3316 | -8/Garrison | Garrison Relay disabled 3399 | -8/Garrison | Triggered checkpoint 3407 | -8/Garrison | Reached level 8 3415 | -8/Garrison | Triggered checkpoint 3455 | -8/Garrison | Triggered checkpoint 3491 | -8/Garrison | Triggered checkpoint 3556 | -8/Garrison | Spotted B-75 Beast 3571 | -8/Garrison | Phase Generator disabled 3603 | -8/Garrison | Destroyed B-75 Beast 3661 | -8/Garrison | Reached level 9 3676 | -8/Garrison | Triggered checkpoint 3701 | -8/Garrison | Garrison Relay disabled 3710 | -8/Garrison | Garrison Relay disabled 3722 | -8/Garrison | Identified exit to Materials 3722 | -8/Garrison | Discovered exit to Materials (range 70) 3722 | -8/Garrison | Discovered exit to Materials (range 27) 3722 | -8/Garrison | Discovered exit to Materials (range 45) 3765 | -8/Garrison | Triggered checkpoint 3978 | -8/Garrison | Garrison Relay disabled 4076 | -8/Garrison | Learned Materials security intel 4076 | -8/Garrison | Reached level 10 4160 | -8/Garrison | Upgraded with Utility slot (x1) 4192 | -8/Garrison | Triggered checkpoint 4282 | -8/Garrison | Garrison Relay disabled 4342 | -8/Garrison | Entered Materials 4522 | -8/Materials | Reached level 11 4543 | -8/Materials | Upgraded with Weapon slot (x1) 4571 | -8/Materials | Destroyed 7 combat bots 4646 | -8/Materials | Identified exit to Garrison 4649 | -8/Materials | Entered Garrison 4727 | -8/Garrison | Triggered checkpoint 4751 | -8/Garrison | Identified exit to Materials 4751 | -8/Garrison | Discovered exit to Materials (range 63) 4751 | -8/Garrison | Discovered exit to Materials (range 102) 4751 | -8/Garrison | Discovered exit to Materials (range 69) 4760 | -8/Garrison | Garrison Relay disabled 4966 | -8/Garrison | Triggered checkpoint 4983 | -8/Garrison | Reached level 12 5114 | -8/Garrison | Garrison Relay disabled 5120 | -8/Garrison | Build established: Hacker-Gunner 5156 | -8/Garrison | Garrison Relay disabled 5213 | -8/Garrison | Triggered checkpoint 5295 | -8/Garrison | Rescued a captive Derelict 5301 | -8/Garrison | Triggered checkpoint 5305 | -8/Garrison | Rescued a captive Derelict 5392 | -8/Garrison | Garrison Relay disabled 5579 | -8/Garrison | Garrison Relay disabled 5579 | -8/Garrison | Reached level 13 5588 | -8/Garrison | Garrison Relay disabled 5770 | -8/Garrison | Upgraded with Utility slot (x1) 5892 | -8/Garrison | Entered Materials 6064 | -8/Materials | Build established: Wizard-Gunner 6179 | -8/Materials | Discovered exit to Factory (range 18) 6315 | -8/Materials | Identified exit to Garrison 6316 | -8/Materials | Entered Garrison 6316 | -8/Garrison | Accompanied by 1 ally 6326 | -8/Garrison | Triggered checkpoint 6391 | -8/Garrison | Triggered checkpoint 6434 | -8/Garrison | Triggered checkpoint 6522 | -8/Garrison | Garrison Relay disabled 6748 | -8/Garrison | Garrison Relay disabled 6754 | -8/Garrison | P-60 Hacker assimilated allied JV-V3A(l) 6893 | -8/Garrison | Triggered checkpoint 6915 | -8/Garrison | Triggered checkpoint 6919 | -8/Garrison | Triggered checkpoint 6922 | -8/Garrison | Reached level 14 7012 | -8/Garrison | Discovered exit to Factory (range 16) 7041 | -8/Garrison | Triggered checkpoint 7149 | -8/Garrison | Triggered checkpoint 7167 | -8/Garrison | Garrison Relay disabled 7263 | -8/Garrison | Discovered exit to Factory (range 11) 7283 | -8/Garrison | Triggered checkpoint 7314 | -8/Garrison | Garrison Relay disabled 7403 | -8/Garrison | Upgraded with Weapon slot (x1) 7405 | -8/Garrison | Identified XL Autogun Array 7415 | -8/Garrison | Spotted B-75 Beast 7421 | -8/Garrison | Allies destroyed B-75 Beast 7496 | -8/Garrison | Triggered checkpoint 7530 | -8/Garrison | Garrison Relay disabled 7546 | -8/Garrison | Discovered exit to Factory (range 8) 7587 | -8/Garrison | Entered Factory 7587 | -7/Factory | Accompanied by 2 allies 7589 | -7/Factory | FarCom data flow suspended 7589 | -7/Factory | Reached level 15 7589 | -7/Factory | Upgraded with Utility slot (x1) 8220 | -7/Factory | Identified exit to Garrison 8223 | -7/Factory | Entered Garrison 8223 | -7/Garrison | Accompanied by 1 ally 8238 | -7/Garrison | Identified exit to Factory 8238 | -7/Garrison | Discovered exit to Factory (range 40) 8238 | -7/Garrison | Discovered exit to Factory (range 69) 8238 | -7/Garrison | Discovered exit to Factory (range 51) 8271 | -7/Garrison | Triggered checkpoint 8301 | -7/Garrison | Garrison Relay disabled 8309 | -7/Garrison | Triggered checkpoint 8333 | -7/Garrison | Triggered checkpoint 8346 | -7/Garrison | Reached level 16 8362 | -7/Garrison | Triggered checkpoint 8386 | -7/Garrison | Destroyed 10 combat bots 8397 | -7/Garrison | Triggered checkpoint 8439 | -7/Garrison | Garrison Relay disabled 8575 | -7/Garrison | Triggered checkpoint 8663 | -7/Garrison | Triggered checkpoint 8677 | -7/Garrison | Garrison Relay disabled 8865 | -7/Garrison | Phase Generator disabled 8888 | -7/Garrison | Garrison Relay disabled 8895 | -7/Garrison | Triggered checkpoint 8918 | -7/Garrison | Garrison Relay disabled 8987 | -7/Garrison | Entered Factory 8987 | -7/Factory | Accompanied by 5 allies 9104 | -7/Factory | Fabricated G-47 Trooper? 9120 | -7/Factory | Reached level 17 9165 | -7/Factory | Upgraded with Utility slot (x1) 9709 | -7/Factory | Fabricated G-47 Trooper? 9716 | -7/Factory | Fabricated G-47 Trooper? 9774 | -7/Factory | Identified exit to Lower Caves 9774 | -7/Factory | Discovered exit to Lower Caves (range 18) 9794 | -7/Factory | Fabricated G-47 Trooper? 9823 | -7/Factory | Identified exit to Garrison 9839 | -7/Factory | Entered Garrison 9839 | -7/Garrison | Accompanied by 10 allies 9852 | -7/Garrison | Triggered checkpoint 9870 | -7/Garrison | Garrison Relay disabled 9871 | -7/Garrison | Triggered checkpoint 9933 | -7/Garrison | Triggered checkpoint 9953 | -7/Garrison | Triggered checkpoint 9953 | -7/Garrison | Triggered checkpoint 9993 | -7/Garrison | Destroyed 12 combat bots 10014 | -7/Garrison | Garrison Relay disabled 10036 | -7/Garrison | Identified exit to Factory 10036 | -7/Garrison | Discovered exit to Factory (range 6) 10044 | -7/Garrison | Destroyed 8 combat bots 10084 | -7/Garrison | Spotted B-75 Beast 10087 | -7/Garrison | Destroyed B-75 Beast 10138 | -7/Garrison | Reached level 18 10276 | -7/Garrison | Discovered exit to Factory (range 3) 10289 | -7/Garrison | Triggered checkpoint 10299 | -7/Garrison | Garrison Relay disabled 10379 | -7/Garrison | Lost 4 allies 10432 | -7/Garrison | Garrison Relay disabled 10437 | -7/Garrison | Triggered checkpoint 10458 | -7/Garrison | Phase Generator disabled 10476 | -7/Garrison | Rescued a captive Derelict 10485 | -7/Garrison | Rescued a captive Derelict 10503 | -7/Garrison | Garrison Relay disabled 10512 | -7/Garrison | Garrison Relay disabled 10524 | -7/Garrison | Garrison Relay disabled 10524 | -7/Garrison | Garrison Relay disabled 10581 | -7/Garrison | Discovered exit to Factory (range 10) 10618 | -7/Garrison | Entered Factory 10618 | -7/Factory | Accompanied by 7 allies 11007 | -7/Factory | Fabricated G-47 Trooper (x3) 11074 | -7/Factory | Fabricated G-47 Trooper? 11280 | -7/Factory | Identified exit to Factory 11280 | -7/Factory | Discovered exit to Factory (range 16) 11315 | -7/Factory | Garrison activated, responded to threat 11387 | -7/Factory | Identified exit to Garrison 11388 | -7/Factory | Entered Garrison 11388 | -7/Garrison | Accompanied by 9 allies 11475 | -7/Garrison | Garrison Relay disabled 11483 | -7/Garrison | Triggered checkpoint 11510 | -7/Garrison | Triggered checkpoint 11521 | -7/Garrison | Triggered checkpoint 11659 | -7/Garrison | Phase Generator disabled 11696 | -7/Garrison | Triggered checkpoint 11701 | -7/Garrison | Reached level 19 11741 | -7/Garrison | Lost 3 allies 11742 | -7/Garrison | Upgraded with Utility slot (x1) 11746 | -7/Garrison | Triggered checkpoint 11753 | -7/Garrison | Destroyed 15 combat bots 11782 | -7/Garrison | Triggered checkpoint 11813 | -7/Garrison | Garrison Relay disabled 11822 | -7/Garrison | Garrison Relay disabled 11851 | -7/Garrison | Identified exit to Factory 11851 | -7/Garrison | Discovered exit to Factory (range 17) 11869 | -7/Garrison | Discovered exit to Factory (range 10) 11869 | -7/Garrison | Discovered exit to Factory (range 58) 11869 | -7/Garrison | Discovered exit to Factory (range 71) 11991 | -7/Garrison | Triggered checkpoint 12002 | -7/Garrison | Garrison Relay disabled 12022 | -7/Garrison | Found embedded Infiltrators 12172 | -7/Garrison | Garrison Relay disabled 12185 | -7/Garrison | Destroyed 7 combat bots 12198 | -7/Garrison | Triggered checkpoint 12198 | -7/Garrison | Garrison Relay disabled 12441 | -7/Garrison | Entered Factory 12441 | -7/Factory | Accompanied by 8 allies 12565 | -7/Factory | Fabricated G-47 Trooper? 12591 | -7/Factory | Lost 5 allies 12856 | -7/Factory | Discovered exit to Lower Caves (range 17) 13027 | -7/Factory | Discovered exit to Factory (range 14) 13030 | -7/Factory | Allied Derelicts emerged from ambush trap array 13067 | -7/Factory | Identified exit to Garrison 13087 | -7/Factory | Entered Garrison 13087 | -7/Garrison | Accompanied by 7 allies 13118 | -7/Garrison | Triggered checkpoint 13127 | -7/Garrison | Garrison Relay disabled 13151 | -7/Garrison | Triggered checkpoint 13203 | -7/Garrison | Triggered checkpoint 13215 | -7/Garrison | Triggered checkpoint 13220 | -7/Garrison | Triggered checkpoint 13235 | -7/Garrison | Triggered checkpoint 13262 | -7/Garrison | Destroyed 10 combat bots 13305 | -7/Garrison | Identified exit to Factory 13305 | -7/Garrison | Discovered exit to Factory (range 10) 13317 | -7/Garrison | Triggered checkpoint 13331 | -7/Garrison | Garrison Relay disabled 13343 | -7/Garrison | Found embedded Infiltrators 13406 | -7/Garrison | Discovered exit to Factory (range 9) 13424 | -7/Garrison | Triggered checkpoint 13437 | -7/Garrison | Garrison Relay disabled 13554 | -7/Garrison | Discovered exit to Factory (range 3) 13589 | -7/Garrison | Discovered exit to Factory (range 14) 13589 | -7/Garrison | Discovered exit to Factory (range 63) 13589 | -7/Garrison | Discovered exit to Factory (range 77) 13600 | -7/Garrison | Garrison Relay disabled 13682 | -7/Garrison | Entered Factory 13682 | -7/Factory | Accompanied by 9 allies 13967 | -7/Factory | Fabricated G-47 Trooper? 14082 | -7/Factory | Discovered exit to Lower Caves (range 15) 14182 | -7/Factory | Reached level 20 14297 | -7/Factory | Entered Lower Caves 14297 | -7/Lower Caves | Accompanied by 11 allies 14303 | -7/Lower Caves | Met a Warlord Commander 14304 | -7/Lower Caves | Learned location of Warlord (-4) 14305 | -7/Lower Caves | Warlord Commander delivered Encrypted Comm Array 14309 | -7/Lower Caves | Found Encrypted Comm Array 14384 | -7/Lower Caves | Lost 4 allies 14389 | -7/Lower Caves | Attracted the attention of an 0b10 outpost 14416 | -7/Lower Caves | Destroyed 7 combat bots 14574 | -7/Lower Caves | Encountered a Warlord checkpoint 14620 | -7/Lower Caves | Learned Factory garrison access intel 14645 | -7/Lower Caves | Identified exit to Lower Caves 14645 | -7/Lower Caves | Discovered exit to Lower Caves (range 6) 14669 | -7/Lower Caves | Found Prototype Device 14693 | -7/Lower Caves | Entered another Lower Caves area 14693 | -7/Lower Caves | Accompanied by 9 allies 14794 | -7/Lower Caves | Learned Factory security intel 14822 | -7/Lower Caves | Attacked by a faux Warlord 14850 | -7/Lower Caves | Destroyed 7 combat bots 14956 | -7/Lower Caves | Encountered a Warlord checkpoint 15033 | -7/Lower Caves | Learned 4 Factory zone layouts 15042 | -7/Lower Caves | Spotted 8Y-ZJ6(f) 15042 | -7/Lower Caves | Spotted E4-YTH(f) 15043 | -7/Lower Caves | Encountered a Master Thief 15043 | -7/Lower Caves | Encountered a Master Thief 15043 | -7/Lower Caves | Spotted 8X-QHF(f) 15044 | -7/Lower Caves | Encountered a Master Thief 15044 | -7/Lower Caves | Destroyed 8X-QHF(f) 15046 | -7/Lower Caves | Destroyed 8Y-ZJ6(f) 15047 | -7/Lower Caves | Allies destroyed E4-YTH(f) 15070 | -7/Lower Caves | Identified exit to Data Miner 15070 | -7/Lower Caves | Discovered exit to Data Miner (range 14) 15096 | -7/Lower Caves | Entered Data Miner 15096 | -7/Data Miner | Accompanied by 6 allies 15096 | -7/Data Miner | Identified exit to Proximity Caves 15096 | -7/Data Miner | Discovered exit to Proximity Caves (range 6) 15112 | -7/Data Miner | Met Data Miner 15136 | -7/Data Miner | Learned location of Section 7 (-2) 15136 | -7/Data Miner | Acquired the access code to Warlord's prototype stash 15144 | -7/Data Miner | Received God Mode back door access code from Data Miner 15157 | -7/Data Miner | Data Conduit disabled 15157 | -7/Data Miner | Destroyed Data Miner 15199 | -7/Data Miner | Found Prototype Device 15199 | -7/Data Miner | Identified Exp. Thermal Shield 15228 | -7/Data Miner | Found Prototype Hackware 15228 | -7/Data Miner | Identified Quantum Router 15231 | -7/Data Miner | Found Prototype Hackware 15231 | -7/Data Miner | Identified System Mapper 15235 | -7/Data Miner | Found Prototype Hackware 15235 | -7/Data Miner | Identified Deep Network Scanner 15273 | -7/Data Miner | Entered Proximity Caves 15273 | -6/Proximity Caves | Accompanied by 6 allies 15325 | -6/Proximity Caves | Spotted B-75 Beast 15329 | -6/Proximity Caves | Destroyed B-75 Beast 15547 | -6/Proximity Caves | Discovered exit to Factory (range 5) 15561 | -6/Proximity Caves | Entered Factory 15561 | -6/Factory | Accompanied by 4 allies 15562 | -6/Factory | Identified exit to Factory 15564 | -6/Factory | Loaded intel: 1 garrison access location 15613 | -6/Factory | Joined by Warlord Muscle squad 15964 | -6/Factory | Joined by Warlord Geek squad 15980 | -6/Factory | Identified exit to Lower Caves 15980 | -6/Factory | Discovered exit to Lower Caves (range 17) 16031 | -6/Factory | Joined by Warlord Chimera squad 16150 | -6/Factory | Reached level 21 16159 | -6/Factory | Upgraded with Utility slot (x1) 16288 | -6/Factory | Fabricated E-15 Imp? 16302 | -6/Factory | Joined by Warlord Chimera squad 16336 | -6/Factory | Garrison activated, responded to threat 16371 | -6/Factory | Identified exit to Garrison 16453 | -6/Factory | Cargo convoy interrupted 16469 | -6/Factory | Local machine network offline 16469 | -6/Factory | Found PL-3XN's Ring of Power 16515 | -6/Factory | Lost 3 allies 16559 | -6/Factory | Entered Garrison 16559 | -6/Garrison | Accompanied by 2 allies 16585 | -6/Garrison | Spotted B-75 Beast 16591 | -6/Garrison | Local machine network offline 16591 | -6/Garrison | Triggered checkpoint 16608 | -6/Garrison | Destroyed B-75 Beast 16631 | -6/Garrison | Destroyed 7 combat bots 16633 | -6/Garrison | Lost 4 allies 16635 | -6/Garrison | Garrison Relay disabled 16667 | -6/Garrison | Found Gamma Bomb Array 16762 | -6/Garrison | Spotted B-75 Beast 16763 | -6/Garrison | Triggered checkpoint 16779 | -6/Garrison | Destroyed B-75 Beast 16837 | -6/Garrison | Triggered checkpoint 16851 | -6/Garrison | Triggered checkpoint 16852 | -6/Garrison | Triggered checkpoint 16905 | -6/Garrison | Identified exit to Factory 16905 | -6/Garrison | Discovered exit to Factory (range 9) 16937 | -6/Garrison | Triggered checkpoint 16982 | -6/Garrison | Garrison Relay disabled 16995 | -6/Garrison | Phase Generator disabled 17035 | -6/Garrison | Destroyed 7 combat bots 17121 | -6/Garrison | Discovered exit to Factory (range 13) 17219 | -6/Garrison | Triggered checkpoint 17249 | -6/Garrison | Triggered checkpoint 17290 | -6/Garrison | Garrison Relay disabled 17401 | -6/Garrison | Discovered exit to Factory (range 16) 17420 | -6/Garrison | Garrison Relay disabled 17491 | -6/Garrison | Triggered checkpoint 17508 | -6/Garrison | Garrison Relay disabled 17551 | -6/Garrison | Entered Factory 17637 | -6/Factory | Identified exit to Extension 17666 | -6/Factory | Spotted B-75 Beast 17699 | -6/Factory | Destroyed B-75 Beast 17706 | -6/Factory | Joined by Warlord Ranger squad 17746 | -6/Factory | Reached level 22 17757 | -6/Factory | Upgraded with Power slot (x1) 17849 | -6/Factory | Fabricated G-47 Trooper (x3) 17966 | -6/Factory | Discovered exit to Factory (range 17) 17969 | -6/Factory | Fabricated G-47 Trooper? 17998 | -6/Factory | Lost 3 allies 18045 | -6/Factory | Joined by Warlord Chimera squad 18128 | -6/Factory | Local machine network offline 18186 | -6/Factory | Joined by Warlord Geek squad 18381 | -6/Factory | Lost 3 allies 18487 | -6/Factory | Murdered 3 allies 18491 | -6/Factory | Lost 3 allies 18516 | -6/Factory | Garrison activated, responded to threat 18539 | -6/Factory | Identified exit to Garrison 18545 | -6/Factory | Entered Garrison 18545 | -6/Garrison | Accompanied by 2 allies 18597 | -6/Garrison | Triggered checkpoint 18660 | -6/Garrison | Triggered checkpoint 18667 | -6/Garrison | Garrison Relay disabled 18742 | -6/Garrison | Triggered checkpoint 18782 | -6/Garrison | Destroyed 8 combat bots 18783 | -6/Garrison | Triggered checkpoint 18869 | -6/Garrison | Identified exit to Factory 18869 | -6/Garrison | Discovered exit to Factory (range 10) 18895 | -6/Garrison | Triggered checkpoint 18903 | -6/Garrison | Garrison Relay disabled 19012 | -6/Garrison | Discovered exit to Factory (range 14) 19066 | -6/Garrison | Rescued a captive Derelict 19135 | -6/Garrison | Triggered checkpoint 19139 | -6/Garrison | Found embedded Infiltrators 19147 | -6/Garrison | Garrison Relay disabled 19216 | -6/Garrison | Triggered checkpoint 19220 | -6/Garrison | Garrison Relay disabled 19345 | -6/Garrison | Discovered exit to Factory (range 8) 19573 | -6/Garrison | Entered Factory 19573 | -6/Factory | Accompanied by 3 allies 19668 | -6/Factory | Fabricated G-34 Mercenary (x3) 19755 | -6/Factory | Joined by Warlord Ranger squad 19917 | -6/Factory | Fabricated P-70 Sage (x2) 19969 | -6/Factory | Fabricated H-66 Slayer (x2) 19996 | -6/Factory | Fabricated G-34 Mercenary? 20064 | -6/Factory | Discovered exit to Factory (range 18) 20184 | -6/Factory | Joined by Warlord Chimera squad 20255 | -6/Factory | Joined by Warlord Muscle squad 20280 | -6/Factory | Identified exit to Garrison 20316 | -6/Factory | Fabricated H-66 Slayer? 20424 | -6/Factory | Entered Garrison 20424 | -6/Garrison | Accompanied by 15 allies 20432 | -6/Garrison | Phase Generator disabled 20478 | -6/Garrison | Destroyed 10 combat bots 20479 | -6/Garrison | Lost 3 allies 20509 | -6/Garrison | Triggered checkpoint 20535 | -6/Garrison | Garrison Relay disabled 20553 | -6/Garrison | Identified exit to Factory 20553 | -6/Garrison | Discovered exit to Factory (range 73) 20553 | -6/Garrison | Discovered exit to Factory (range 46) 20553 | -6/Garrison | Discovered exit to Factory (range 57) 20585 | -6/Garrison | Triggered checkpoint 20588 | -6/Garrison | Triggered checkpoint 20628 | -6/Garrison | Triggered checkpoint 20646 | -6/Garrison | Lost 3 allies 20651 | -6/Garrison | Destroyed 14 combat bots 20768 | -6/Garrison | Lost 7 allies 20787 | -6/Garrison | Triggered checkpoint 20790 | -6/Garrison | Local machine network offline 20800 | -6/Garrison | Garrison Relay disabled 20800 | -6/Garrison | Reached level 23 20958 | -6/Garrison | Triggered checkpoint 20964 | -6/Garrison | Garrison Relay disabled 21060 | -6/Garrison | Spotted Executioner 21067 | -6/Garrison | Destroyed Executioner 21082 | -6/Garrison | Rewired Executioner 21088 | -6/Garrison | Rewired Striker 21094 | -6/Garrison | Found Prototype Processor 21099 | -6/Garrison | Found Prototype Device 21100 | -6/Garrison | Identified Adv. Kinecellerator 21158 | -6/Garrison | Triggered checkpoint 21164 | -6/Garrison | Garrison Relay disabled 21195 | -6/Garrison | Entered Factory 21195 | -6/Factory | Accompanied by 8 allies 21238 | -6/Factory | Joined by Warlord Dakka squad 21299 | -6/Factory | Joined by Warlord Dakka squad 21356 | -6/Factory | Fabricated H-66 Slayer? 21589 | -6/Factory | Lost 3 allies 21663 | -6/Factory | Joined by Warlord Pyro squad 21733 | -6/Factory | Lost 4 allies 21827 | -6/Factory | Spotted B-75 Beast 21830 | -6/Factory | Destroyed B-75 Beast 21888 | -6/Factory | Fabricated P-70 Sage (x2) 21902 | -6/Factory | Fabricated G-47 Trooper? 21968 | -6/Factory | Fabricated H-66 Slayer (x2) 21968 | -6/Factory | Fabricated G-34 Mercenary? 22053 | -6/Factory | Fabricated P-70 Sage? 22374 | -6/Factory | Local machine network offline 22447 | -6/Factory | Entered Extension 22447 | -6/Extension | Accompanied by 19 allies 22484 | -6/Extension | Rescued a captive Derelict 22507 | -6/Extension | Disrupted transfer network 22507 | -6/Extension | Rescued a captive Derelict 22507 | -6/Extension | Rescued a captive Derelict 22554 | -6/Extension | Energy Cycler disabled 22555 | -6/Extension | Rescued a captive Derelict 22556 | -6/Extension | Rescued a captive Derelict 22557 | -6/Extension | Rescued a captive Derelict 22564 | -6/Extension | Rescued a captive Derelict 22621 | -6/Extension | Local machine network offline 22664 | -6/Extension | Spotted B-75 Beast 22670 | -6/Extension | Destroyed B-75 Beast 22674 | -6/Extension | Spotted B-75 Beast 22680 | -6/Extension | Discovered exit to Factory (range 17) 22681 | -6/Extension | Destroyed B-75 Beast 22866 | -6/Extension | Discovered exit to Factory (range 10) 22867 | -6/Extension | Identified exit to Cetus 22867 | -6/Extension | Discovered exit to Cetus (range 6) 23638 | -6/Extension | Entered Cetus 23638 | -6/Cetus | Accompanied by 22 allies 23651 | -6/Cetus | Spotted Cetus Guard 23651 | -6/Cetus | Spotted Cetus Guard 23652 | -6/Cetus | Destroyed Cetus Guard 23653 | -6/Cetus | Destroyed Cetus Guard 23653 | -6/Cetus | Spotted Cetus Guard 23654 | -6/Cetus | Spotted Cetus Guard 23656 | -6/Cetus | Destroyed Cetus Guard 23657 | -6/Cetus | Destroyed Cetus Guard 23757 | -6/Cetus | Identified exit to Archives 23757 | -6/Cetus | Discovered exit to Archives (range 18) 23773 | -6/Cetus | Spotted Cetus Guard 23774 | -6/Cetus | Spotted Cetus Guard 23775 | -6/Cetus | Destroyed Cetus Guard 23776 | -6/Cetus | Destroyed Cetus Guard 23777 | -6/Cetus | Spotted Cetus Guard 23777 | -6/Cetus | Spotted Cetus Guard 23778 | -6/Cetus | Destroyed Cetus Guard 23780 | -6/Cetus | Destroyed Cetus Guard 23784 | -6/Cetus | Discovered exit to Factory (range 17) 23791 | -6/Cetus | Met Revision 17 23874 | -6/Cetus | Entered Archives 23874 | -6/Archives | Accompanied by 22 allies 23885 | -6/Archives | Met Zhirov 23889 | -6/Archives | Identified exit to Hub_04(d) 23889 | -6/Archives | Discovered exit to Hub_04(d) (range 18) 23891 | -6/Archives | Reinforcements dispatched to Archives 23895 | -6/Archives | Read partially decrypted archive contents 23929 | -6/Archives | Entered Hub_04(d) 23929 | -6/Hub_04(d) | Accompanied by 22 allies 23973 | -6/Hub_04(d) | Network Hub disabled 24006 | -6/Hub_04(d) | Disrupted transfer network 24029 | -6/Hub_04(d) | Discovered exit to Factory (range 5) 24040 | -6/Hub_04(d) | Sage 5a assimilated hostile Y-54 Guardian 24044 | -6/Hub_04(d) | Discovered exit to Factory (range 18) 24063 | -6/Hub_04(d) | Spotted Lightning 24063 | -6/Hub_04(d) | Spotted Lightning 24063 | -6/Hub_04(d) | Spotted Lightning 24068 | -6/Hub_04(d) | Destroyed Lightning 24074 | -6/Hub_04(d) | Destroyed Lightning 24077 | -6/Hub_04(d) | Destroyed Lightning 24104 | -6/Hub_04(d) | Destroyed 7 combat bots 24108 | -6/Hub_04(d) | Lost 3 allies 24205 | -6/Hub_04(d) | Spotted B-75 Beast 24207 | -6/Hub_04(d) | Spotted Lightning 24207 | -6/Hub_04(d) | Spotted Lightning 24208 | -6/Hub_04(d) | Spotted Lightning 24216 | -6/Hub_04(d) | Destroyed B-75 Beast 24220 | -6/Hub_04(d) | Destroyed Lightning 24223 | -6/Hub_04(d) | Destroyed Lightning 24225 | -6/Hub_04(d) | Sage 5a assimilated hostile Lightning 24279 | -6/Hub_04(d) | First assault squad dispatched 24289 | -6/Hub_04(d) | Network Hub disabled 24312 | -6/Hub_04(d) | Local machine network offline 24315 | -6/Hub_04(d) | Murdered 5 allies 24403 | -6/Hub_04(d) | Joined by Warlord Muscle squad 24419 | -6/Hub_04(d) | Discovered exit to Factory (range 4) 24462 | -6/Hub_04(d) | Joined by Warlord Ghost squad 24473 | -6/Hub_04(d) | Discovered exit to Factory (range 14) 24474 | -6/Hub_04(d) | Spotted Lightning 24476 | -6/Hub_04(d) | Spotted Lightning 24477 | -6/Hub_04(d) | Spotted Lightning 24485 | -6/Hub_04(d) | Reached level 24 24492 | -6/Hub_04(d) | Destroyed Lightning 24495 | -6/Hub_04(d) | Destroyed Lightning 24498 | -6/Hub_04(d) | Destroyed Lightning 24513 | -6/Hub_04(d) | Network Hub disabled 24519 | -6/Hub_04(d) | Destroyed 7 combat bots 24522 | -6/Hub_04(d) | Network Hub disabled 24529 | -6/Hub_04(d) | Lost 6 allies 24541 | -6/Hub_04(d) | Entered Factory 24541 | -5/Factory | Accompanied by 4 allies 24541 | -5/Factory | Upgraded with Propulsion slot (x1) 24548 | -5/Factory | Murdered 3 allies 24631 | -5/Factory | Joined by Warlord Ranger squad 24766 | -5/Factory | Joined by Warlord Ranger squad 24864 | -5/Factory | Identified exit to Upper Caves 24864 | -5/Factory | Discovered exit to Upper Caves (range 6) 24868 | -5/Factory | Joined by Warlord Dakka squad 25049 | -5/Factory | Fabricated H-66 Slayer? 25063 | -5/Factory | Joined by Warlord Chimera squad 25084 | -5/Factory | Fabricated P-60 Hacker? 25114 | -5/Factory | Fabricated P-70 Sage? 25123 | -5/Factory | Lost 3 allies 25201 | -5/Factory | Fabricated G-34 Mercenary? 25236 | -5/Factory | Fabricated G-67 Veteran? 25286 | -5/Factory | Fabricated H-77 Assassin (x2) 25333 | -5/Factory | Local machine network offline 25390 | -5/Factory | Fabricated G-67 Veteran (x3) 25391 | -5/Factory | Fabricated P-70 Sage? 25456 | -5/Factory | Hacker 6a assimilated hostile W-25 Informer 25461 | -5/Factory | Identified exit to Garrison 25525 | -5/Factory | Entered Garrison 25525 | -5/Garrison | Warlord forces raided the area 25525 | -5/Garrison | Accompanied by 19 allies 25546 | -5/Garrison | Triggered checkpoint 25558 | -5/Garrison | Garrison Relay disabled 25566 | -5/Garrison | Garrison Relay disabled 25575 | -5/Garrison | Triggered checkpoint 25646 | -5/Garrison | Destroyed 7 combat bots 25673 | -5/Garrison | Triggered checkpoint 25680 | -5/Garrison | Spotted B-75 Beast 25707 | -5/Garrison | Triggered checkpoint 25725 | -5/Garrison | Triggered checkpoint 25729 | -5/Garrison | Lost 4 allies 25775 | -5/Garrison | Identified exit to Factory 25775 | -5/Garrison | Discovered exit to Factory (range 11) 25789 | -5/Garrison | Discovered exit to Factory (range 6) 25789 | -5/Garrison | Discovered exit to Factory (range 79) 25789 | -5/Garrison | Discovered exit to Factory (range 85) 25789 | -5/Garrison | Identified exit to Factory 25789 | -5/Garrison | Discovered exit to Factory (range 58) 25813 | -5/Garrison | Local machine network offline 25815 | -5/Garrison | Triggered checkpoint 25832 | -5/Garrison | Garrison Relay disabled 25847 | -5/Garrison | Warlord forces retreated 25903 | -5/Garrison | Triggered checkpoint 25911 | -5/Garrison | Garrison Relay disabled 25918 | -5/Garrison | Triggered checkpoint 25960 | -5/Garrison | Sage 6a assimilated hostile X-72 Disruptor 26037 | -5/Garrison | Garrison Relay disabled 26037 | -5/Garrison | Reached level 25 26041 | -5/Garrison | Triggered checkpoint 26041 | -5/Garrison | Sage 6a assimilated hostile G-50 Soldier 26072 | -5/Garrison | Triggered checkpoint 26223 | -5/Garrison | Attempted to access garrison exit controls, blocked by remote lockdown 26395 | -5/Garrison | Entered Factory 26395 | -4/Factory | Accompanied by 20 allies 26408 | -4/Factory | Identified exit to Upper Caves 26466 | -4/Factory | Joined by Warlord Dakka squad 26576 | -4/Factory | Joined by Warlord Dakka squad 26751 | -4/Factory | Fabricated X-77 Beamer? 26784 | -4/Factory | Joined by Warlord Pyro squad 26816 | -4/Factory | Fabricated H-77 Assassin? 26833 | -4/Factory | Reached level 26 26841 | -4/Factory | Identified exit to Research 26841 | -4/Factory | Discovered exit to Research (range 16) 26918 | -4/Factory | Murdered 3 allies 26941 | -4/Factory | Entered Upper Caves 26941 | -4/Upper Caves | Accompanied by 22 allies 27149 | -4/Upper Caves | Encountered a Warlord checkpoint 27163 | -4/Upper Caves | Learned location of Testing (-2) 27194 | -4/Upper Caves | Identified exit to Upper Caves 27194 | -4/Upper Caves | Discovered exit to Upper Caves (range 12) 27238 | -4/Upper Caves | Entered another Upper Caves area 27238 | -4/Upper Caves | Accompanied by 22 allies 27248 | -4/Upper Caves | Learned location of 1 exit from Research 27267 | -4/Upper Caves | Discovered exit to Research (range 14) 27353 | -4/Upper Caves | Attacked by a delusional Derelict stockpiling parts 27463 | -4/Upper Caves | Learned Research terminal intel 27500 | -4/Upper Caves | Sage 6b assimilated hostile H-77 Assassin 27537 | -4/Upper Caves | Identified exit to Warlord 27537 | -4/Upper Caves | Discovered exit to Warlord (range 8) 27606 | -4/Upper Caves | Entered Warlord 27606 | -4/Warlord | Accompanied by 22 allies 27694 | -4/Warlord | Met Warlord 27702 | -4/Warlord | Opened Warlord's prototype stash 27708 | -4/Warlord | Found Prototype Reactor 27708 | -4/Warlord | Identified Vortex Chain Reactor 27715 | -4/Warlord | Upgraded with Utility slot (x1) 27715 | -4/Warlord | Found Prototype Hackware 27715 | -4/Warlord | Identified Ghost Barrier 27719 | -4/Warlord | Warlord's base attacked by MAIN.C 27720 | -4/Warlord | Found Prototype Device 27720 | -4/Warlord | Identified Exp. Focal Shield 27728 | -4/Warlord | Found Prototype Device 27728 | -4/Warlord | Identified Exp. Phase Shifter 27803 | -4/Warlord | Spotted B-86 Titan 27859 | -4/Warlord | Lost 7 allies 27965 | -4/Warlord | Reached level 27 27987 | -4/Warlord | Warlord forces counterattacked 28084 | -4/Warlord | Lost 3 allies 28119 | -4/Warlord | Spotted B-86 Titan 28119 | -4/Warlord | Spotted B-90 Cyclops 28134 | -4/Warlord | Destroyed B-90 Cyclops 28149 | -4/Warlord | Identified exit to Proximity Caves 28149 | -4/Warlord | Discovered exit to Proximity Caves (range 13) 28175 | -4/Warlord | Lost 10 allies 28219 | -4/Warlord | Spotted Executioner 28219 | -4/Warlord | Spotted Striker 28219 | -4/Warlord | Allies destroyed Executioner 28229 | -4/Warlord | Destroyed Striker 28254 | -4/Warlord | Destroyed 11 combat bots 28261 | -4/Warlord | Lost 5 allies 28319 | -4/Warlord | Spotted Executioner 28321 | -4/Warlord | Spotted Striker 28321 | -4/Warlord | Spotted Striker 28326 | -4/Warlord | Destroyed Executioner 28328 | -4/Warlord | P-70 Sage assimilated allied 7P-DDP(g) 28329 | -4/Warlord | Destroyed Lightning 28330 | -4/Warlord | Destroyed Striker 28353 | -4/Warlord | Found Prototype Processor 28353 | -4/Warlord | Identified Exp. Core Analyzer 28356 | -4/Warlord | Destroyed 11 combat bots 28375 | -4/Warlord | Entered Proximity Caves 28376 | -3/Proximity Caves | Lost 16 allies 28377 | -3/Proximity Caves | Reached level 28 28634 | -3/Proximity Caves | Spotted B-86 Titan 28698 | -3/Proximity Caves | Destroyed B-86 Titan 28851 | -3/Proximity Caves | Discovered exit to Research (range 11) 28878 | -3/Proximity Caves | Attracted the attention of an 0b10 base 28949 | -3/Proximity Caves | Learned Armory trap positions 28958 | -3/Proximity Caves | Destroyed 14 combat bots 29013 | -3/Proximity Caves | Entered Research 29014 | -3/Research | Identified exit to Research 29015 | -3/Research | Loaded intel: 25 terminal locations 29015 | -3/Research | Reached level 29 29022 | -3/Research | Upgraded with Utility slot (x1) 29163 | -3/Research | Identified exit to Armory 29163 | -3/Research | Identified exit to Quarantine 29213 | -3/Research | Revision forces began assault on 0b10 29247 | -3/Research | Met up with Revision 17++ 29330 | -3/Research | Fabricated Adv. Signal Interpreter (x2) 29414 | -3/Research | Fabricated Adv. Targeting Computer (x2) 29619 | -3/Research | Fabricated P-70 Sage? 29713 | -3/Research | Research terminal network offline 29789 | -3/Research | Spotted Striker 29790 | -3/Research | Destroyed Striker 29790 | -3/Research | Spotted Striker 29795 | -3/Research | Destroyed Striker 29822 | -3/Research | Found Prototype Processor 29822 | -3/Research | Identified Exp. Signal Interpreter 29830 | -3/Research | Destroyed 7 combat bots 29907 | -3/Research | Spotted B-90 Cyclops 29912 | -3/Research | Destroyed B-90 Cyclops 29940 | -3/Research | Spotted Striker 29946 | -3/Research | Destroyed Striker 29975 | -3/Research | Identified exit to Garrison 29977 | -3/Research | Lost 3 allies 30073 | -3/Research | Spotted Striker 30079 | -3/Research | Reached level 30 30110 | -3/Research | Entered Garrison 30125 | -3/Garrison | Learned Research security intel 30168 | -3/Garrison | Triggered checkpoint 30180 | -3/Garrison | Garrison Relay disabled 30246 | -3/Garrison | Triggered checkpoint 30295 | -3/Garrison | Triggered checkpoint 30297 | -3/Garrison | Triggered checkpoint 30299 | -3/Garrison | Destroyed 9 combat bots 30334 | -3/Garrison | Triggered checkpoint 30388 | -3/Garrison | Garrison Relay disabled 30406 | -3/Garrison | Triggered checkpoint 30423 | -3/Garrison | Rewired Executioner 30425 | -3/Garrison | Rewired Executioner 30435 | -3/Garrison | Identified exit to Research 30435 | -3/Garrison | Discovered exit to Research (range 9) 30520 | -3/Garrison | Garrison Relay disabled 30529 | -3/Garrison | Discovered exit to Research (range 15) 30623 | -3/Garrison | Garrison Relay disabled 30721 | -3/Garrison | Discovered exit to Research (range 5) 30734 | -3/Garrison | Discovered exit to Research (range 12) 30734 | -3/Garrison | Discovered exit to Research (range 42) 30734 | -3/Garrison | Discovered exit to Research (range 83) 30738 | -3/Garrison | Triggered checkpoint 30774 | -3/Garrison | Garrison Relay disabled 30802 | -3/Garrison | Entered Research 30802 | -3/Research | Accompanied by 2 allies 30907 | -3/Research | Garrison activated, responded to threat 30942 | -3/Research | Fabricated P-80 Master? 31086 | -3/Research | Spotted B-86 Titan 31091 | -3/Research | Destroyed B-86 Titan 31101 | -3/Research | Garrison activated, responded to threat 31130 | -3/Research | Destroyed 7 combat bots 31176 | -3/Research | Reached level 31 31182 | -3/Research | Spotted B-86 Titan 31184 | -3/Research | Destroyed B-86 Titan 31240 | -3/Research | Discovered exit to Research (range 8) 31259 | -3/Research | Discovered exit to Research (range 7) 31300 | -3/Research | Spotted B-90 Cyclops 31303 | -3/Research | Destroyed B-90 Cyclops 31394 | -3/Research | Identified exit to Garrison 31395 | -3/Research | Entered Garrison 31395 | -3/Garrison | Accompanied by 3 allies 31421 | -3/Garrison | Triggered checkpoint 31440 | -3/Garrison | Garrison Relay disabled 31474 | -3/Garrison | Spotted B-86 Titan 31483 | -3/Garrison | Allies destroyed B-86 Titan 31497 | -3/Garrison | Triggered checkpoint 31514 | -3/Garrison | Destroyed 10 combat bots 31519 | -3/Garrison | Triggered checkpoint 31521 | -3/Garrison | Allies destroyed Executioner 31555 | -3/Garrison | Destroyed 8 combat bots 31580 | -3/Garrison | Spotted B-86 Titan 31586 | -3/Garrison | Allies destroyed B-86 Titan 31612 | -3/Garrison | Phase Generator disabled 31636 | -3/Garrison | Identified exit to Research 31636 | -3/Garrison | Discovered exit to Research (range 6) 31660 | -3/Garrison | Found Prototype Processor 31660 | -3/Garrison | Identified Exp. Melee Analysis Suite 31678 | -3/Garrison | QS Assembler disabled 31735 | -3/Garrison | Triggered checkpoint 31737 | -3/Garrison | Garrison Relay disabled 31851 | -3/Garrison | Triggered checkpoint 31920 | -3/Garrison | Garrison Relay disabled 31945 | -3/Garrison | Discovered exit to Research (range 12) 32060 | -3/Garrison | Found embedded Infiltrators 32190 | -3/Garrison | Discovered exit to Research (range 11) 32253 | -3/Garrison | Garrison Relay disabled 32360 | -3/Garrison | Entered Research 32360 | -3/Research | Accompanied by 4 allies 32480 | -3/Research | Discovered exit to Research (range 19) 32653 | -3/Research | First assault squad dispatched 32683 | -3/Research | Destroyed 15 combat bots 32714 | -3/Research | Garrison activated, responded to threat 32765 | -3/Research | Destroyed 7 combat bots 32861 | -3/Research | Garrison activated, responded to threat 32930 | -3/Research | Garrison activated, responded to threat 33024 | -3/Research | Fabricated P-80 Master? 33060 | -3/Research | Research terminal network offline 33087 | -3/Research | Fabricated H-77 Assassin? 33246 | -3/Research | Garrison activated, responded to threat 33272 | -3/Research | Identified exit to Garrison 33273 | -3/Research | Entered Garrison 33273 | -3/Garrison | Accompanied by 3 allies 33341 | -3/Garrison | Phase Generator disabled 33347 | -3/Garrison | Reached level 32 33368 | -3/Garrison | Triggered checkpoint 33371 | -3/Garrison | Triggered checkpoint 33374 | -3/Garrison | Triggered checkpoint 33396 | -3/Garrison | Destroyed 17 combat bots 33403 | -3/Garrison | Triggered checkpoint 33432 | -3/Garrison | Garrison Relay disabled 33510 | -3/Garrison | Garrison Relay disabled 33610 | -3/Garrison | Garrison Relay disabled 33646 | -3/Garrison | Triggered checkpoint 33656 | -3/Garrison | Identified exit to Research 33656 | -3/Garrison | Discovered exit to Research (range 12) 33757 | -3/Garrison | Triggered checkpoint 33767 | -3/Garrison | Discovered exit to Research (range 3) 33858 | -3/Garrison | Discovered exit to Research (range 10) 33870 | -3/Garrison | Spotted B-86 Titan 33885 | -3/Garrison | Triggered checkpoint 33896 | -3/Garrison | Garrison Relay disabled 33921 | -3/Garrison | Destroyed B-86 Titan 34061 | -3/Garrison | Triggered checkpoint 34078 | -3/Garrison | Garrison Relay disabled 34121 | -3/Garrison | Discovered exit to Research (range 7) 34205 | -3/Garrison | Entered Research 34205 | -3/Research | Accompanied by 5 allies 34323 | -3/Research | Fabricated H-77 Assassin (x2) 34339 | -3/Research | Spotted B-86 Titan 34341 | -3/Research | Destroyed B-86 Titan 34437 | -3/Research | Garrison activated, responded to threat 34674 | -3/Research | Discovered exit to Research (range 15) 34726 | -3/Research | Cargo convoy interrupted 34781 | -3/Research | Fabricated P-80 Master? 34796 | -3/Research | Spotted B-90 Cyclops 34800 | -3/Research | Destroyed B-90 Cyclops 34810 | -3/Research | Discovered exit to Quarantine (range 19) 34876 | -3/Research | Garrison activated, responded to threat 34886 | -3/Research | Master 8e assimilated hostile H-77 Assassin 34905 | -3/Research | Research terminal network offline 34912 | -3/Research | Identified exit to Garrison 34916 | -3/Research | Entered Garrison 34916 | -3/Garrison | Accompanied by 8 allies 34928 | -3/Garrison | Identified exit to Research 34928 | -3/Garrison | Discovered exit to Research (range 51) 34928 | -3/Garrison | Discovered exit to Research (range 57) 34928 | -3/Garrison | Discovered exit to Research (range 69) 34938 | -3/Garrison | Triggered checkpoint 34952 | -3/Garrison | Garrison Relay disabled 34971 | -3/Garrison | Spotted B-86 Titan 34971 | -3/Garrison | Destroyed B-86 Titan 34984 | -3/Garrison | Triggered checkpoint 34993 | -3/Garrison | Triggered checkpoint 34994 | -3/Garrison | Triggered checkpoint 35011 | -3/Garrison | Triggered checkpoint 35033 | -3/Garrison | Destroyed 8 combat bots 35072 | -3/Garrison | Garrison Relay disabled 35078 | -3/Garrison | Triggered checkpoint 35178 | -3/Garrison | Phase Generator disabled 35246 | -3/Garrison | P-80 Master assimilated allied Assassin 8a 35296 | -3/Garrison | Garrison Relay disabled 35308 | -3/Garrison | Triggered checkpoint 35343 | -3/Garrison | Spotted B-86 Titan 35348 | -3/Garrison | Destroyed B-86 Titan 35442 | -3/Garrison | Triggered checkpoint 35456 | -3/Garrison | Garrison Relay disabled 35585 | -3/Garrison | Entered Research 35585 | -3/Research | Accompanied by 6 allies 35851 | -3/Research | Spotted B-90 Cyclops 35854 | -3/Research | Destroyed B-90 Cyclops 35859 | -3/Research | Discovered exit to Quarantine (range 20) 36085 | -3/Research | First assault squad dispatched 36140 | -3/Research | Garrison activated, responded to threat 36151 | -3/Research | Entered Armory 36151 | -3/Armory | Accompanied by 3 allies 36152 | -3/Armory | Loaded intel: 60 trap records 36176 | -3/Armory | Reached level 33 36182 | -3/Armory | Upgraded with Utility slot (x1) 36321 | -3/Armory | Destroyed 7 combat bots 36370 | -3/Armory | Fabricated P-80 Master (x2) 36464 | -3/Armory | Fabricated H-77 Assassin? 36476 | -3/Armory | Master 8g assimilated hostile G-67 Veteran 36497 | -3/Armory | Destroyed 8 combat bots 36539 | -3/Armory | Master 8h assimilated hostile W-44 Eye 36572 | -3/Armory | Master 8g assimilated hostile Y-72 Warden 36647 | -3/Armory | Fabricated P-80 Master? 36706 | -3/Armory | Fabricated H-77 Assassin? 36742 | -3/Armory | Energy Cycler disabled 36836 | -3/Armory | Spotted B-86 Titan 36836 | -3/Armory | Spotted Armor Guard 36836 | -3/Armory | Spotted Armor Guard 36848 | -3/Armory | Destroyed B-86 Titan 36857 | -3/Armory | Destroyed Armor Guard 36860 | -3/Armory | Destroyed Armor Guard 36913 | -3/Armory | Lost 9 allies 36996 | -3/Armory | Destroyed 8 combat bots 37093 | -3/Armory | Fabricated P-80 Master? 37104 | -3/Armory | Fabricated H-77 Assassin? 37185 | -3/Armory | Identified exit to Lab 37185 | -3/Armory | Discovered exit to Lab (range 3) 37349 | -3/Armory | Fabricated P-80 Master? 37358 | -3/Armory | Fabricated G-67 Veteran? 37385 | -3/Armory | Entered Lab 37385 | -3/Lab | Accompanied by 9 allies 37385 | -3/Lab | Discovered exit to Research (range 9) 37397 | -3/Lab | Unable to decrypt terminal 37422 | -3/Lab | Unable to decrypt terminal 37422 | -3/Lab | Unable to decrypt terminal 37426 | -3/Lab | Entered Research 37426 | -2/Research | Accompanied by 9 allies 37426 | -2/Research | Warlord forces began assault on 0b10 37451 | -2/Research | Distinguished unit "Magnificent Bastards" dispatched to help 37451 | -2/Research | Distinguished unit "Golden Rifle" dispatched to help 37455 | -2/Research | Met up with Warlord 37536 | -2/Research | Research machine network offline 37593 | -2/Research | Fabricated H-77 Assassin? 37633 | -2/Research | Spotted B-90 Cyclops 37646 | -2/Research | Destroyed B-90 Cyclops 37721 | -2/Research | Spotted Striker 37726 | -2/Research | Allies destroyed Striker 37733 | -2/Research | Reached level 34 37760 | -2/Research | Identified exit to Access 37760 | -2/Research | Discovered exit to Access (range 10) 37828 | -2/Research | Spotted Executioner 37839 | -2/Research | Spotted Striker 37840 | -2/Research | Allies destroyed Striker 37847 | -2/Research | Identified exit to Testing 37847 | -2/Research | Discovered exit to Testing (range 19) 37862 | -2/Research | Borebot progress halted 37886 | -2/Research | Spotted Striker 37887 | -2/Research | Spotted Striker 37889 | -2/Research | Destroyed Striker 37892 | -2/Research | Destroyed Striker 38107 | -2/Research | Discovered exit to Testing (range 10) 38177 | -2/Research | Spotted Striker 38179 | -2/Research | Destroyed Striker 38209 | -2/Research | Lost 3 allies 38210 | -2/Research | Destroyed 7 combat bots 38288 | -2/Research | Spotted Striker 38289 | -2/Research | Spotted Striker 38290 | -2/Research | Destroyed Striker 38292 | -2/Research | Destroyed Striker 38427 | -2/Research | Warlord invited to help at Command 38548 | -2/Research | Entered Testing 38548 | -2/Testing | Accompanied by 7 allies 38626 | -2/Testing | Found Prototype Energy Cannon 38650 | -2/Testing | Fabricated P-80 Master? 38660 | -2/Testing | Garrison activated, responded to threat 38691 | -2/Testing | Protovariant out of control (PY-9CCRP0BFZ4) 38691 | -2/Testing | Unleashed a protovariant (PY-9CCRP0BFZ4) 38747 | -2/Testing | Spotted Striker 38748 | -2/Testing | Spotted Striker 38753 | -2/Testing | Destroyed Striker 38756 | -2/Testing | Spotted Alpha 7 38756 | -2/Testing | Destroyed Striker 38761 | -2/Testing | Destroyed Alpha 7 38913 | -2/Testing | Found Prototype Energy Cannon 38913 | -2/Testing | Identified Potential Cannon 38915 | -2/Testing | Found Prototype Energy Cannon 38915 | -2/Testing | Identified Imp. Potential Cannon 38931 | -2/Testing | Fabricated P-80 Master? 39060 | -2/Testing | Spotted RQ-VJ4(D) 39061 | -2/Testing | Destroyed RQ-VJ4(D) 39088 | -2/Testing | Fabricated H-77 Assassin? 39106 | -2/Testing | Garrison activated, responded to threat 39154 | -2/Testing | Lost 5 allies 39534 | -2/Testing | Spotted Fortress 39553 | -2/Testing | Allies destroyed Fortress 39642 | -2/Testing | Found Prototype Device 39642 | -2/Testing | Identified Exp. Cloaking Device 39744 | -2/Testing | Fabricated P-80 Master? 39763 | -2/Testing | Found Prototype Ballistic Cannon 39763 | -2/Testing | Identified Perforator 39871 | -2/Testing | Entered Access 39871 | -1/Access | Accompanied by 6 allies 39873 | -1/Access | Reached level 35 40001 | -1/Access | Garrison activated, responded to threat 40003 | -1/Access | Master 9f assimilated hostile H-88 Terminator 40005 | -1/Access | Garrison activated, responded to threat 40070 | -1/Access | Destroyed 26 combat bots 40075 | -1/Access | Lost 3 allies 40117 | -1/Access | Identified exit to Command 40117 | -1/Access | Discovered exit to Command (range 8) 40204 | -1/Access | Garrison activated, responded to threat 40323 | -1/Access | P-80 Master assimilated allied Assassin 8j 40357 | -1/Access | Entered Command 40359 | -1/Command | Reached level 36 40376 | -1/Command | Disengaged cave seal 40376 | -1/Command | Derelicts emerged from the dark tunnel 40376 | -1/Command | Welcomed Warlord to Command 40705 | -1/Command | Spotted M Guard 40705 | -1/Command | Spotted M Guard 40705 | -1/Command | Spotted Combat Programmer 40706 | -1/Command | Spotted Combat Programmer 40720 | -1/Command | Destroyed M Guard 40722 | -1/Command | All MAIN.C guards destroyed 40733 | -1/Command | Warlord commented on Warlord statues 40751 | -1/Command | Lost 3 allies 40795 | -1/Command | Spotted Alpha 7 40797 | -1/Command | Spotted Executioner 40797 | -1/Command | Spotted Executioner 40797 | -1/Command | Spotted Alpha 7 40797 | -1/Command | Spotted Striker 40797 | -1/Command | Spotted Executioner 40797 | -1/Command | Spotted Striker 40797 | -1/Command | Spotted Executioner 40798 | -1/Command | Destroyed Striker 40798 | -1/Command | Spotted B-99 Colossus 40799 | -1/Command | Spotted B-99 Colossus 40802 | -1/Command | Destroyed Alpha 7 40802 | -1/Command | Destroyed Executioner 40804 | -1/Command | Destroyed Executioner 40805 | -1/Command | Destroyed Executioner 40806 | -1/Command | Destroyed Striker 40814 | -1/Command | Destroyed B-99 Colossus 40824 | -1/Command | Destroyed B-99 Colossus 40841 | -1/Command | Identified exit to Surface 40841 | -1/Command | Discovered exit to Surface (range 8) 40845 | -1/Command | Destroyed 8 combat bots 40848 | -1/Command | Lost 7 allies 41036 | -1/Command | Met MAIN.C 41036 | -1/Command | Reached level 37 41038 | -1/Command | 0b10 Conduit disabled 41040 | -1/Command | Warlord shut down involuntarily 41075 | -1/Command | Surrendered to MAIN.C 41075 | -1/Command | Loaded intel: 67 machine locations 41075 | -1/Command | Loaded intel: 50 trap records 41075 | -1/Command | Discovered exit to Surface (range 52) 41075 | -1/Command | Discovered exit to Surface (range 77) 41075 | -1/Command | Spotted MT-2TU(K) 41083 | -1/Command | Destroyed MT-2TU(K) 41104 | -1/Command | Lost 9 allies 41115 | -1/Command | Destroyed 19 combat bots 41158 | -1/Command | Found Prototype Device 41158 | -1/Command | Identified Exp. EM Disruption Field 41161 | -1/Command | Found Prototype Device 41161 | -1/Command | Identified Femtoactuators 41164 | -1/Command | Found Prototype Device 41164 | -1/Command | Identified Exp. System Purifier 41167 | -1/Command | Found Prototype Device 41167 | -1/Command | Identified Exp. Hardlight Generator 41189 | -1/Command | MAIN.C activated Command garrisons 41227 | -1/Command | Unknown forces attacked Command 41227 | -1/Command | Spotted EQ-000 41227 | -1/Command | Spotted EQ-006 41227 | -1/Command | Spotted EQ-004 41227 | -1/Command | Spotted EQ-003 41227 | -1/Command | Spotted EQ-001 41229 | -1/Command | Destroyed EQ-006 41235 | -1/Command | Destroyed EQ-000 41239 | -1/Command | Destroyed EQ-003 41242 | -1/Command | Destroyed EQ-001 41246 | -1/Command | Spotted EQ-002 41250 | -1/Command | Destroyed EQ-002 41321 | -1/Command | Spotted EQ-018 41321 | -1/Command | Spotted EQ-031 41321 | -1/Command | Spotted EQ-020 41321 | -1/Command | Spotted EQ-021 41324 | -1/Command | Destroyed EQ-021 41330 | -1/Command | Destroyed EQ-031 41342 | -1/Command | Spotted EQ-019 41345 | -1/Command | Destroyed EQ-019 41414 | -1/Command | Spotted EQ-036 41414 | -1/Command | Spotted EQ-016 41418 | -1/Command | Destroyed EQ-016 41420 | -1/Command | Destroyed EQ-036 41424 | -1/Command | Spotted EQ-039 41424 | -1/Command | Spotted EQ-042 41424 | -1/Command | Spotted EQ-038 41424 | -1/Command | Spotted EQ-040 41427 | -1/Command | Destroyed EQ-042 41431 | -1/Command | Destroyed EQ-040 41434 | -1/Command | Spotted EQ-015 41434 | -1/Command | Spotted EQ-022 41437 | -1/Command | Destroyed EQ-022 41439 | -1/Command | Destroyed EQ-015 41465 | -1/Command | Lost 11 allies 41527 | -1/Command | Spotted EQ-062 41527 | -1/Command | Spotted EQ-060 41527 | -1/Command | Spotted EQ-061 41527 | -1/Command | Spotted EQ-082 41530 | -1/Command | Destroyed EQ-062 41532 | -1/Command | Destroyed EQ-061 41535 | -1/Command | Destroyed EQ-060 41560 | -1/Command | Spotted EQ-053 41565 | -1/Command | Lost 6 allies 41602 | -1/Command | Spotted EQ-068 41603 | -1/Command | Spotted EQ-067 41604 | -1/Command | Destroyed EQ-068 41608 | -1/Command | Spotted EQ-076 41609 | -1/Command | Destroyed EQ-067 41613 | -1/Command | Destroyed EQ-076 41643 | -1/Command | Spotted EQ-085 41643 | -1/Command | Spotted EQ-084 41649 | -1/Command | Destroyed EQ-084 41651 | -1/Command | Destroyed EQ-085 41707 | -1/Command | Spotted EQ-079 41709 | -1/Command | Destroyed EQ-079 41711 | -1/Command | Spotted EQ-044 41713 | -1/Command | Destroyed EQ-044 41733 | -1/Command | Spotted EQ-096 41736 | -1/Command | Spotted EQ-102 41736 | -1/Command | Destroyed EQ-096 41743 | -1/Command | Destroyed EQ-102 41744 | -1/Command | Attackers retreated from Command 41744 | *** | Fortifying 0b10! Last Messages --------------- 41713_ Acquired 15 matter. 41713_ EQ-044 destroyed. 41714_ Acquired 15 matter. 41718_ Protomatter-62 decays. 41726_ G-73 Enforcer destroyed. 41736_ EQ-096 destroyed. 41736_ Adv. Corruption Screen intercepted 1% system corruption. 41743_ EQ-102 destroyed. 41744_ ALERT: Enemy forces retreating. MAIN.C: I admit your assistance was pivotal here. It looks like I was right to trust you. This attack appears to have been designed to merely test our defenses, although it was nearly effective enough to force me to take the conflict to the next level. Investigating the origins of these bots should be one of our highest priorities... [Achievement: Rambo] [Achievement: Death Machine] Map ----- +----------------------------------------------------+ | ## ### # #????????????????????????? | | "" # ## # #????????????????????????? | | """" / ## # #????????????????????????? | | """" # * ## #########????????????????????????? | | "" # ## #########????????????????????????? | | =## ### ## ! #?######################## | | ## #?# ## #?#??????????????????????? | | ######### #?# ## #?#?###################### | | #?# ##= #?#?#""""""" "" " %%% ! | | #?# #; ]]!#?#?#"" "" %===* | | ######+####### #; ]! #?#?# """" "" %!!!*% | | # # ]! #?#?# "" """" !=*[[% | | # # ! #?#?# " !*=!=%=% | | # + !* #?#?# %=%/%/%! | | # # [% #?#?# =! !==%[[!* | | ########/####?#?# % %!=%=%%=*=/! | | #############???##%!%!! #?#?# % ]= %*=%=*=[= | | ####### #????#;]!!!!!#?#?# M!/==%==*=*" | | #?????#[![%!=#?#?# ![!*!=*%%"""" | | #?????#!=%!!!#?#?#! * %== [*=!= "" | | #?????#[!!!!=#?#?#%=! =%! !![!!% ] """" | | ###!###%!*=!!;?#?#%*]!!!!* = *[=!=" | | ! i%=#*!== !!%!!%!=####=%!!%! != !!![] | | ! %=%%**%=* %%!!!%]=!!!!!!%=!=!! g ! | | ! !%=]!!=[[!=|!!!!!*!!%[!|!==c!b! s | | !]!==%===!!%|%]%@!]=*!!!!!!![[" | | #"### #% !!*==%####!!% "!=%= %" | | #????####!!!=[#?#?#! !%%]!!" % %" | | #???????#!%!!=#?#?# !!!"* b % | | ### #??###### !=! #?#?###################### | | #?# #??# # % #?#??????????????????????? | | #?# #??# # #?######################## | | #?# #### # #????????????????????????? | | ## #?# ## = # #????????????????????????? | | ##+##### < ## + #????????????????????????? | | ## ## # #????????????????????????? | | ] ######## #######????????????????????????? | | *#??????# #??????????????????????????????? | | "" #??????# #??????????????????????????????? | | """" #??????######??????????????????????????????? | | """" #??????????????????????????????????????????? | | "" #??????????????????????????????????????????? | | #??????????????????????????????????????????? | | #??????????????????????????????????????????? | | #######??????????????????????????????????????????? | | ?????????????????????????????????????????????????? | | ?????????????????????????????????????????????????? | | ?????????????????????????????????????????????????? | | ?????????????????????????????????????????????????? | | ?????????????????????????????????????????????????? | +----------------------------------------------------+ Best States ------------- Heat Dissipation 109 Energy Generation 65 Energy Capacity 750 Matter Stores 600 Matter Capacity 600 Sight Range 20 Robot Scan Range 20 Terrain Scan Density 10 ECM Strength 1 Cloak Strength 4 Corruption Block 20 Armor Coverage 225 Resistance: KI 55 Resistance: TH 65 Resistance: EX 60 Resistance: EM 100 Resistance: I 35 Resistance: S 35 Resistance: P 35 Utility Shielding 33 Weapon Shielding 33 Point Defense Rating 240 Weapon Cycling 25 Phase Shifting 20 Evasion (%) 83 Targeting Accuracy 8 Core Analysis 8 Recoil Reduction 2 Particle Charging 15 Kinecelleration 50 Offensive Hacking 65 Defensive Hacking 45 Authchip Count 1 Item Schematics ----------------- Mass Driver | -7/Factory | Hacked Hyp. Gauss Cannon | -7/Factory | Hacked Adv. Cooling System | -7/Factory | Hacked Arm. Medium Treads | -7/Factory | Hacked Plasma Cannon | -7/Factory | Hacked Combat Drone Bay | -7/Data Miner | Free Lgt. Regenerative Plating | -7/Data Miner | Free Cld. Cesium-ion Thruster | -7/Data Miner | Free Gravity Neutralizer | -7/Data Miner | Free Prc. Rocket Launcher | -7/Data Miner | Free Antigrav System | -7/Data Miner | Free Lyr. Heavy Armor Plating | -7/Data Miner | Free Imp. Remote Datajack | -7/Data Miner | Free Thermal Shield | -7/Data Miner | Free Field Propulsion Drive | -7/Data Miner | Free Adv. Field Recycling Unit | -7/Data Miner | Free Adv. Hardlight Generator | -7/Data Miner | Free Myomer Leg | -7/Data Miner | Free Adv. Terrain Scan Processor | -6/Factory | Hacked Adv. Signal Interpreter | -6/Factory | Hacked Hpw. Shock Rifle | -6/Hub_04(d) | Hacked Recoil Nullifier | -5/Factory | Hacked Adv. Remote Datajack | -5/Factory | Hacked Adv. Targeting Computer | -3/Research | Hacked Gamma Bomb Array | -3/Research | Hacked Centrium Heavy Treads | -3/Research | Hacked Quantum Reactor | -3/Research | Hacked Centrium Leg | -3/Research | Hacked Adv. Recalibrator | -3/Research | Hacked Adv. Heavy Siege Treads | -3/Research | Hacked Biometal Heavy Treads | -2/Testing | Hacked Imp. Matter Neutralizer | -2/Testing | Archive Prc. Phase Gun | -2/Testing | Archive Imp. Diametric Drive | -2/Testing | Archive Enh. Nova Cannon | -1/Command | Hacked Robot Schematics ------------------ G-47 Trooper | -7/Factory | Hacked G-50 Soldier | -7/Data Miner | Free A-15 Conveyor | -7/Data Miner | Free M-22 Extractor | -7/Data Miner | Free G-34 Mercenary | -6/Factory | Hacked H-66 Slayer | -6/Factory | Hacked P-70 Sage | -6/Factory | Hacked G-67 Veteran | -5/Factory | Hacked P-60 Hacker | -5/Factory | Hacked H-77 Assassin | -5/Factory | Hacked X-77 Beamer | -5/Factory | Hacked P-80 Master | -3/Research | Hacked H-55 Commando | -3/Research | Hacked Y-64 Sentinel | -3/Research | Hacked E-15 Imp | -3/Research | Hacked Fabricated ------------ G-47 Trooper | x3 | -7/Factory G-47 Trooper | x3 | -7/Factory G-47 Trooper | x3 | -7/Factory G-47 Trooper | x3 | -7/Factory G-47 Trooper | x3 | -7/Factory G-47 Trooper | x3 | -7/Factory G-47 Trooper | x3 | -7/Factory G-47 Trooper | x3 | -7/Factory E-15 Imp | x2 | -6/Factory | Preloaded G-47 Trooper | x3 | -6/Factory G-47 Trooper | x3 | -6/Factory G-34 Mercenary | x3 | -6/Factory P-70 Sage | x2 | -6/Factory H-66 Slayer | x2 | -6/Factory G-34 Mercenary | x3 | -6/Factory H-66 Slayer | x2 | -6/Factory H-66 Slayer | x2 | -6/Factory P-70 Sage | x2 | -6/Factory G-47 Trooper | x3 | -6/Factory H-66 Slayer | x2 | -6/Factory G-34 Mercenary | x3 | -6/Factory P-70 Sage | x2 | -6/Factory H-66 Slayer | x2 | -5/Factory P-60 Hacker | x2 | -5/Factory P-70 Sage | x2 | -5/Factory G-34 Mercenary | x3 | -5/Factory G-67 Veteran | x3 | -5/Factory H-77 Assassin | x2 | -5/Factory G-67 Veteran | x3 | -5/Factory P-70 Sage | x2 | -5/Factory X-77 Beamer | x2 | -4/Factory H-77 Assassin | x2 | -4/Factory Adv. Signal Interpreter | x2 | -3/Research Adv. Targeting Computer | x2 | -3/Research P-70 Sage | x2 | -3/Research P-80 Master | x2 | -3/Research P-80 Master | x2 | -3/Research H-77 Assassin | x2 | -3/Research H-77 Assassin | x2 | -3/Research P-80 Master | x2 | -3/Research P-80 Master | x2 | -3/Armory H-77 Assassin | x2 | -3/Armory P-80 Master | x2 | -3/Armory H-77 Assassin | x2 | -3/Armory P-80 Master | x2 | -3/Armory H-77 Assassin | x2 | -3/Armory P-80 Master | x2 | -3/Armory G-67 Veteran | x3 | -3/Armory H-77 Assassin | x2 | -2/Research P-80 Master | x2 | -2/Testing P-80 Master | x2 | -2/Testing H-77 Assassin | x2 | -2/Testing P-80 Master | x2 | -2/Testing Alien Tech Used ----------------- None Achievements -------------- 404 Death Machine Gun Specialist Pwned Rambo Release The Drones! We Are Legion Challenges ------------ None RPGLIKE | -11 -10 -10 -10 -9 -8 -8 -8 -8 -8 -8 -7 -7 -7 -7 -7 -7 -7 -7 -7 -7 -7 -7 -6 -6 -6 -6 -6 -6 -6 -6 -6 -6 -6 -6 -5 -5 -4 -4 -4 -4 -3 -3 -3 -3 -3 -3 -3 -3 -3 -3 -3 -3 -2 -2 -1 -1 --------- Run | Yrd Mat Min Exi Min Mat Gar Mat Gar Mat Gar Fac Gar Fac Gar Fac Gar Fac Gar Fac Low Low Dat Pro Fac Gar Fac Gar Fac Gar Fac Ext Cet Arc Hub Fac Gar Fac Upp Upp War Pro Res Gar Res Gar Res Gar Res Gar Res Arm Lab Res Tes Acc Com Levels Raised 36 | . . 1 . 1 3 4 1 2 . 1 1 1 1 1 . 1 . . 1 . . . . 1 . 1 . . 1 . . . . 1 . 1 1 . . 1 1 2 . 1 . . 1 . . . 1 . 1 . 1 2 XP Earned 60326 | 6000 1005 1260 350 843 5254 5491 1482 2436 210 1729 1601 2240 553 1703 343 1134 167 528 188 106 40 59 413 1133 1142 385 593 53 655 332 276 131 70 641 616 926 1620 118 354 2242 1167 1947 987 581 840 464 540 198 522 237 603 172 1323 572 1857 1894 XP Spent 59795 | 5960 . 1520 . 1495 4505 5900 1440 3180 . 1100 1700 . 3100 . . 3025 . . . . . . . 3050 . 500 510 . 1900 . . . . 210 800 . . . . 3650 600 5325 . 700 . . . . . 185 3500 . 1575 . 1450 2915 Upgrades 117 | 18 . 6 . 3 6 17 5 5 . 1 1 . 2 . . 4 . . . . . . . 3 . 1 3 . 2 . . . . 1 1 . . . . 4 2 12 . 1 . . . . . 1 1 . 7 . 3 7 Power Slot 1 | . . . . . . . . . . . . . . . . . . . . . . . . . . 1 . . . . . . . . . . . . . . . . . . . . . . . . . . . . . . Propulsion Slot 2 | 1 . . . . . . . . . . . . . . . . . . . . . . . . . . . . . . . . . . 1 . . . . . . . . . . . . . . . . . . . . . Utility Slot 11 | 1 . . . . . 2 . 1 . . 1 . 1 . . 1 . . . . . . . 1 . . . . . . . . . . . . . . . 1 . 1 . . . . . . . . 1 . . . . . Weapon Slot 3 | 1 . . . . . . 1 . . 1 . . . . . . . . . . . . . . . . . . . . . . . . . . . . . . . . . . . . . . . . . . . . . . Core Integrity 25 | 2 . . . 1 1 8 4 . . . . . . . . . . . . . . . . . . . . . . . . . . . . . . . . . . . . . . . . . . 1 . . 7 . . 1 Heat Dissipation 14 | . . 4 . . . . . 1 . . . . . . . . . . . . . . . . . . 3 . . . . . . 1 . . . . . 3 2 . . . . . . . . . . . . . . . Energy Generation 2 | . . . . . . . . 2 . . . . . . . . . . . . . . . . . . . . . . . . . . . . . . . . . . . . . . . . . . . . . . . . Energy Storage 1 | 1 . . . . . . . . . . . . . . . . . . . . . . . . . . . . . . . . . . . . . . . . . . . . . . . . . . . . . . . . Matter Storage 6 | . . . . . . 1 . . . . . . . . . 1 . . . . . . . . . . . . . . . . . . . . . . . . . . . . . . . . . . . . . . . 4 Mass Support 1 | 1 . . . . . . . . . . . . . . . . . . . . . . . . . . . . . . . . . . . . . . . . . . . . . . . . . . . . . . . . Inventory Capacity 7 | 3 . 1 . 1 2 . . . . . . . . . . . . . . . . . . . . . . . . . . . . . . . . . . . . . . . . . . . . . . . . . . . Sight Range 4 | 2 . . . . . . . . . . . . . . . . . . . . . . . . . . . . . . . . . . . . . . . . . 1 . 1 . . . . . . . . . . . . Sensor Range 10 | . . . . . . . . . . . . . . . . . . . . . . . . . . . . . . . . . . . . . . . . . . 10 . . . . . . . . . . . . . . Ranged Accuracy 4 | 2 . . . . . 2 . . . . . . . . . . . . . . . . . . . . . . . . . . . . . . . . . . . . . . . . . . . . . . . . . . Hack Attack % 4 | 2 . . . . . 1 . 1 . . . . . . . . . . . . . . . . . . . . . . . . . . . . . . . . . . . . . . . . . . . . . . . . Hack Defense % 4 | 2 . . . . . . . . . . . . . . . . . . . . . . . . . . . . 2 . . . . . . . . . . . . . . . . . . . . . . . . . . . KI Resistance % 4 | . . . . . . 1 . . . . . . . . . . . . . . . . . . . . . . . . . . . . . . . . . . . . . . . . . . . . . . . . 2 1 TH Resistance % 4 | . . . . . . 1 . . . . . . . . . 1 . . . . . . . . . . . . . . . . . . . . . . . . . . . . . . . . . . . . . . 1 1 EX Resistance % 3 | . . . . . . . . . . . . . . . . 1 . . . . . . . 2 . . . . . . . . . . . . . . . . . . . . . . . . . . . . . . . . KI Damage % 4 | . . 1 . . 1 1 . . . . . . 1 . . . . . . . . . . . . . . . . . . . . . . . . . . . . . . . . . . . . . . . . . . . TH Damage % 2 | . . . . 1 1 . . . . . . . . . . . . . . . . . . . . . . . . . . . . . . . . . . . . . . . . . . . . . . . . . . . EX Damage % 1 | . . . . . 1 . . . . . . . . . . . . . . . . . . . . . . . . . . . . . . . . . . . . . . . . . . . . . . . . . . . Protomatter Created 28970 | . 91 38 . . 49 321 233 561 35 298 161 655 141 811 360 917 153 764 126 142 208 72 96 375 1033 874 838 22 1000 224 276 207 . 1175 378 908 526 . 23 594 614 971 843 432 1441 688 1131 736 896 610 1528 . 770 664 1079 1882 Integrity Restored 8882 | . 172 114 . . 65 723 535 459 . 563 23 207 62 285 252 175 . 209 38 49 42 5 59 223 357 218 235 11 112 35 119 . . 493 105 93 85 . 15 58 66 125 147 145 295 110 158 194 177 126 368 . 112 183 64 416 Core 6597 | . 126 114 . . 45 661 297 346 . 424 17 157 45 201 188 123 . 145 23 35 32 4 44 189 265 167 175 8 54 22 88 . . 393 63 70 66 . 10 36 51 98 110 109 218 81 121 78 129 99 273 . 83 142 47 325 Parts 2285 | . 46 . . . 20 62 238 113 . 139 6 50 17 84 64 52 . 64 15 14 10 1 15 34 92 51 60 3 58 13 31 . . 100 42 23 19 . 5 22 15 27 37 36 77 29 37 116 48 27 95 . 29 41 17 91 Protomatter Decayed 49471 | . 43 . 30 23 . 32 . 425 35 361 130 435 88 621 217 1020 152 665 72 69 217 . 118 541 973 513 760 16 999 489 546 . 54 1213 606 1157 789 . . 1008 375 2893 680 1722 1514 3100 1144 2612 960 1513 1577 . 3768 1154 1441 10601 Game ------ Seed TerrainModifiedReplicator Manual? 0 Play Time 08:19:00 Cumulative 114.1 hours Start 2025.04.21 @ 23:38:19 End 2025.04.23 @ 22:44:21 Sessions 7 Manual Loads 0 Difficulty Explorer Special Mode Winter2019/RPGLIKE Game No. 24 Rogue 0 Adventurer 0 Explorer 24 Win Type 8 Total 10 Types 5/0/3/0/0/0/0/1/1 Lore% 51 Gallery% 53 Achievement% 68 Wizard Run 0 Options --------- Layout 2 ASCII 0 Keyboard 1 Movement Numpad Keybinds 0 Fullscreen 1 Font 24/Smallcaps Map View 50x44 Zoom Use 0% Tactical HUD 1 Map Filters NONE Filters NONE Steam 1 RUN: 7fba768c-2fa4-4b50-87da-fc02633bab8f